Workbook

Sheet Introduction
C2: Gas DNSP financial performance data
C3: This workbook contains financial performance reporting for the gas distribution network service providers (DNSPs) under full regulation by the AER. A series of explanatory notes are published in the Electricity and gas network performance report on our website. We encourage stakeholders to read these notes, which detail how we calculate and interpret the financial performance measures.
C5: Coverage
C6: The data covers the regulatory years from 2014 to 2024. Victorian Gas DNSPs reported on a calendar year basis for the years 2014 to 2024, and so for these DNSPs the label 2015 refers to the year ending 31 December 2015. All other Gas DNSPs report on a financial year basis, and for these businesses the label 2015 refers to data collected for the year ending 30 June 2015. Due to Victorian Gas DNSPs having a six month regulatory period for the 2023 regulatory year to transition from calendar to financial regulatory years, the outturn financial performance measures have been annualised to represent a 12 month regulatory period. All financial performance metrics relate to reference services for Gas DNSPs. Unless otherwise stated, all financial values are in nominal dollar terms.
C8: Sources
C9: Data sources for the financial and non-financial information used to determine the financial performance measures are listed in each of the worksheets.
C11: Notes
C12: Returns from indexation of the RAB
C13: Our regulatory framework is designed to target a real rate of return. Under our framework, DNSPs are also compensated for actual inflation outcomes through indexation of the capital asset base (CAB). This is the process of inflating the CAB by CPI each year to preserve its value in real terms. Indexation of the CAB impacts a DNSPs future returns via the return on capital and return of capital building blocks. This model allows users to calculate the returns achieved by DNSPs both including and excluding indexation of the CAB.
C15: Returns from incentive scheme payments
C16: The AER operates incentive schemes to encourage specific efficient behaviours from DNSPs. Under these schemes, DNSPs earn rewards and in some cases penalties which can contribute to differences between allowed and actual returns.
C18: Impact of inflation on returns
C19: Our regulatory framework targets a real rate of return, with expected inflation used to convert nominal allowed returns into real allowed returns. This involves DNSPs bearing the risk from actual inflation differing from expected inflation, creating overperformance for DNSPs when inflation is higher than forecast, and underperformance when inflation is lower than forecast. This models allow users to calculate the returns excluding the impact of actual inflation differing from expected inflation.
C21: Version record
C22: Version | D22: Publication date | E22: Data | F22: financial performance measures | G22: Segment
C23: 5 | D23: December 2025 | E23: Regulatory years 2014 to 2024 | F23: RoRE, RoA and EBIT per customer | G23: Distribution only
C24: 4 | D24: June 2024 | E24: Regulatory years 2014 to 2023 | F24: RoRE, RoA and EBIT per customer | G24: Distribution only
C25: 3 | D25: December 2023 | E25: Regulatory years 2014 to 2022 | F25: RoRE, RoA and EBIT per customer | G25: Distribution and Transmission
C26: 2 | D26: December 2022 | E26: Regulatory years 2014 to 2021 | F26: RoRE, RoA and EBIT per customer | G26: Distribution and Transmission
C27: 1 | D27: December 2021 | E27: Regulatory years 2014 to 2020 | F27: RoA and EBIT per customer | G27: Distribution only

Sheet Inputs (hidden)
A2: Gas Dx | B2: TNSP | C2: Returns from indexation of the RAB | D2: Incentive Schemes | E2: Impact of inflation on returns | F2: Summary headings | G2: Benchmark | H2: Capex
A3: AGN Victoria | B3: Amadeus Gas Pipeline | C3: Inclusive | D3: Inclusive | E3: Inclusive | F3: Allowed nominal rate of return | G3: Yes | H3: Yes
A4: AGN South Australia | B4: Roma Brisbane Pipeline | C4: Exclusive | D4: Exclusive | E4: Exclusive | F4: Allowed real rate of return | G4: No | H4: No
A5: AusNet Services | B5: Victorian Transmission System | F5: Allowed nominal return on equity
A6: Evoenergy | F6: Allowed real return on equity
A7: Jemena Gas Networks | F7: Nominal return on assets
A8: Multinet Gas | F8: Real return on assets
F9: EBIT per customer - Including returns from capital base indexation
F10: EBIT per customer - Excluding returns from capital base indexation
E11: Nominal return on regulated equity | F11: Nominal return on regulated equity
E12: Real return on regulated equity | F12: Real return on regulated equity
E13: Nominal return on regulated equity - excluding incentive schemes
E14: Real return on regulated equity - excluding incentive schemes
E15: Nominal return on regulated equity - excluding impact of inflation
E16: Real return on regulated equity - excluding impact of inflation
E17: Nominal return on regulated equity - excluding incentive schemes and impact of inflation
E18: Real return on regulated equity - excluding incentive schemes and impact of inflation

Sheet Summary
B2: Gas DNSP Profitability Reporting
B4: Returns from indexation of the RAB | C4: Exclusive
B6: Return on assets
B8: =IF(C4="Inclusive",Inputs!F7,Inputs!F8) -> Real return on assets | C8: 2014 | D8: 2015 | E8: 2016 | F8: 2017 | G8: 2018 | H8: 2019 | I8: 2020 | J8: 2021 | K8: 2022 | L8: 2023 | M8: 2024
B9: AGN Victoria | C9: =SUMIFS(Data!$D:$D,Data!$A:$A,$B9,Data!$C:$C,C$8,Data!$B:$B,$B$8) -> 0.06553809422 | D9: =SUMIFS(Data!$D:$D,Data!$A:$A,$B9,Data!$C:$C,D$8,Data!$B:$B,$B$8) -> 0.07736136308 | E9: =SUMIFS(Data!$D:$D,Data!$A:$A,$B9,Data!$C:$C,E$8,Data!$B:$B,$B$8) -> 0.07257921894 | F9: =SUMIFS(Data!$D:$D,Data!$A:$A,$B9,Data!$C:$C,F$8,Data!$B:$B,$B$8) -> 0.07831363677 | G9: =SUMIFS(Data!$D:$D,Data!$A:$A,$B9,Data!$C:$C,G$8,Data!$B:$B,$B$8) -> 0.05550614832 | H9: =SUMIFS(Data!$D:$D,Data!$A:$A,$B9,Data!$C:$C,H$8,Data!$B:$B,$B$8) -> 0.05416376723 | I9: =SUMIFS(Data!$D:$D,Data!$A:$A,$B9,Data!$C:$C,I$8,Data!$B:$B,$B$8) -> 0.0556664055 | J9: =SUMIFS(Data!$D:$D,Data!$A:$A,$B9,Data!$C:$C,J$8,Data!$B:$B,$B$8) -> 0.05677770562 | K9: =SUMIFS(Data!$D:$D,Data!$A:$A,$B9,Data!$C:$C,K$8,Data!$B:$B,$B$8) -> 0.05367702448 | L9: =SUMIFS(Data!$D:$D,Data!$A:$A,$B9,Data!$C:$C,L$8,Data!$B:$B,$B$8) -> 0.05381314801 | M9: =SUMIFS(Data!$D:$D,Data!$A:$A,$B9,Data!$C:$C,M$8,Data!$B:$B,$B$8) -> 0.03216210491
B10: AGN South Australia | C10: =SUMIFS(Data!$D:$D,Data!$A:$A,$B10,Data!$C:$C,C$8,Data!$B:$B,$B$8) -> 0.1063575608 | D10: =SUMIFS(Data!$D:$D,Data!$A:$A,$B10,Data!$C:$C,D$8,Data!$B:$B,$B$8) -> 0.1033518651 | E10: =SUMIFS(Data!$D:$D,Data!$A:$A,$B10,Data!$C:$C,E$8,Data!$B:$B,$B$8) -> 0.1008956069 | F10: =SUMIFS(Data!$D:$D,Data!$A:$A,$B10,Data!$C:$C,F$8,Data!$B:$B,$B$8) -> 0.06700131116 | G10: =SUMIFS(Data!$D:$D,Data!$A:$A,$B10,Data!$C:$C,G$8,Data!$B:$B,$B$8) -> 0.0610687743 | H10: =SUMIFS(Data!$D:$D,Data!$A:$A,$B10,Data!$C:$C,H$8,Data!$B:$B,$B$8) -> 0.06284106039 | I10: =SUMIFS(Data!$D:$D,Data!$A:$A,$B10,Data!$C:$C,I$8,Data!$B:$B,$B$8) -> 0.06611754218 | J10: =SUMIFS(Data!$D:$D,Data!$A:$A,$B10,Data!$C:$C,J$8,Data!$B:$B,$B$8) -> 0.06882186104 | K10: =SUMIFS(Data!$D:$D,Data!$A:$A,$B10,Data!$C:$C,K$8,Data!$B:$B,$B$8) -> 0.04507074004 | L10: =SUMIFS(Data!$D:$D,Data!$A:$A,$B10,Data!$C:$C,L$8,Data!$B:$B,$B$8) -> 0.04457784029 | M10: =SUMIFS(Data!$D:$D,Data!$A:$A,$B10,Data!$C:$C,M$8,Data!$B:$B,$B$8) -> 0.04297624442
B11: AusNet Services | C11: =SUMIFS(Data!$D:$D,Data!$A:$A,$B11,Data!$C:$C,C$8,Data!$B:$B,$B$8) -> 0.04622892682 | D11: =SUMIFS(Data!$D:$D,Data!$A:$A,$B11,Data!$C:$C,D$8,Data!$B:$B,$B$8) -> 0.04946315567 | E11: =SUMIFS(Data!$D:$D,Data!$A:$A,$B11,Data!$C:$C,E$8,Data!$B:$B,$B$8) -> 0.05663452614 | F11: =SUMIFS(Data!$D:$D,Data!$A:$A,$B11,Data!$C:$C,F$8,Data!$B:$B,$B$8) -> 0.05634668263 | G11: =SUMIFS(Data!$D:$D,Data!$A:$A,$B11,Data!$C:$C,G$8,Data!$B:$B,$B$8) -> 0.03643912973 | H11: =SUMIFS(Data!$D:$D,Data!$A:$A,$B11,Data!$C:$C,H$8,Data!$B:$B,$B$8) -> 0.04547413366 | I11: =SUMIFS(Data!$D:$D,Data!$A:$A,$B11,Data!$C:$C,I$8,Data!$B:$B,$B$8) -> 0.04664537533 | J11: =SUMIFS(Data!$D:$D,Data!$A:$A,$B11,Data!$C:$C,J$8,Data!$B:$B,$B$8) -> 0.04559998519 | K11: =SUMIFS(Data!$D:$D,Data!$A:$A,$B11,Data!$C:$C,K$8,Data!$B:$B,$B$8) -> 0.03585558285 | L11: =SUMIFS(Data!$D:$D,Data!$A:$A,$B11,Data!$C:$C,L$8,Data!$B:$B,$B$8) -> 0.03710685626 | M11: =SUMIFS(Data!$D:$D,Data!$A:$A,$B11,Data!$C:$C,M$8,Data!$B:$B,$B$8) -> 0.0348055898
B12: Evoenergy | C12: =SUMIFS(Data!$D:$D,Data!$A:$A,$B12,Data!$C:$C,C$8,Data!$B:$B,$B$8) -> 0.093861922 | D12: =SUMIFS(Data!$D:$D,Data!$A:$A,$B12,Data!$C:$C,D$8,Data!$B:$B,$B$8) -> 0.09914654232 | E12: =SUMIFS(Data!$D:$D,Data!$A:$A,$B12,Data!$C:$C,E$8,Data!$B:$B,$B$8) -> 0.1030273492 | F12: =SUMIFS(Data!$D:$D,Data!$A:$A,$B12,Data!$C:$C,F$8,Data!$B:$B,$B$8) -> 0.05817352713 | G12: =SUMIFS(Data!$D:$D,Data!$A:$A,$B12,Data!$C:$C,G$8,Data!$B:$B,$B$8) -> 0.04879179923 | H12: =SUMIFS(Data!$D:$D,Data!$A:$A,$B12,Data!$C:$C,H$8,Data!$B:$B,$B$8) -> 0.04636357065 | I12: =SUMIFS(Data!$D:$D,Data!$A:$A,$B12,Data!$C:$C,I$8,Data!$B:$B,$B$8) -> 0.0442908626 | J12: =SUMIFS(Data!$D:$D,Data!$A:$A,$B12,Data!$C:$C,J$8,Data!$B:$B,$B$8) -> 0.05366787472 | K12: =SUMIFS(Data!$D:$D,Data!$A:$A,$B12,Data!$C:$C,K$8,Data!$B:$B,$B$8) -> 0.05468986191 | L12: =SUMIFS(Data!$D:$D,Data!$A:$A,$B12,Data!$C:$C,L$8,Data!$B:$B,$B$8) -> 0.04989422366 | M12: =SUMIFS(Data!$D:$D,Data!$A:$A,$B12,Data!$C:$C,M$8,Data!$B:$B,$B$8) -> 0.03466452064
B13: Jemena Gas Networks | C13: =SUMIFS(Data!$D:$D,Data!$A:$A,$B13,Data!$C:$C,C$8,Data!$B:$B,$B$8) -> 0.1054563259 | D13: =SUMIFS(Data!$D:$D,Data!$A:$A,$B13,Data!$C:$C,D$8,Data!$B:$B,$B$8) -> 0.1283551754 | E13: =SUMIFS(Data!$D:$D,Data!$A:$A,$B13,Data!$C:$C,E$8,Data!$B:$B,$B$8) -> 0.07435288372 | F13: =SUMIFS(Data!$D:$D,Data!$A:$A,$B13,Data!$C:$C,F$8,Data!$B:$B,$B$8) -> 0.07345059667 | G13: =SUMIFS(Data!$D:$D,Data!$A:$A,$B13,Data!$C:$C,G$8,Data!$B:$B,$B$8) -> 0.05683148042 | H13: =SUMIFS(Data!$D:$D,Data!$A:$A,$B13,Data!$C:$C,H$8,Data!$B:$B,$B$8) -> 0.04838206272 | I13: =SUMIFS(Data!$D:$D,Data!$A:$A,$B13,Data!$C:$C,I$8,Data!$B:$B,$B$8) -> 0.03390713086 | J13: =SUMIFS(Data!$D:$D,Data!$A:$A,$B13,Data!$C:$C,J$8,Data!$B:$B,$B$8) -> 0.04167393678 | K13: =SUMIFS(Data!$D:$D,Data!$A:$A,$B13,Data!$C:$C,K$8,Data!$B:$B,$B$8) -> 0.03103208653 | L13: =SUMIFS(Data!$D:$D,Data!$A:$A,$B13,Data!$C:$C,L$8,Data!$B:$B,$B$8) -> 0.007629950085 | M13: =SUMIFS(Data!$D:$D,Data!$A:$A,$B13,Data!$C:$C,M$8,Data!$B:$B,$B$8) -> 0.009996505745
B14: Multinet Gas | C14: =SUMIFS(Data!$D:$D,Data!$A:$A,$B14,Data!$C:$C,C$8,Data!$B:$B,$B$8) -> 0.04514157587 | D14: =SUMIFS(Data!$D:$D,Data!$A:$A,$B14,Data!$C:$C,D$8,Data!$B:$B,$B$8) -> 0.04608821531 | E14: =SUMIFS(Data!$D:$D,Data!$A:$A,$B14,Data!$C:$C,E$8,Data!$B:$B,$B$8) -> 0.04658884989 | F14: =SUMIFS(Data!$D:$D,Data!$A:$A,$B14,Data!$C:$C,F$8,Data!$B:$B,$B$8) -> 0.04966035404 | G14: =SUMIFS(Data!$D:$D,Data!$A:$A,$B14,Data!$C:$C,G$8,Data!$B:$B,$B$8) -> 0.06234358015 | H14: =SUMIFS(Data!$D:$D,Data!$A:$A,$B14,Data!$C:$C,H$8,Data!$B:$B,$B$8) -> 0.06403561992 | I14: =SUMIFS(Data!$D:$D,Data!$A:$A,$B14,Data!$C:$C,I$8,Data!$B:$B,$B$8) -> 0.06297016974 | J14: =SUMIFS(Data!$D:$D,Data!$A:$A,$B14,Data!$C:$C,J$8,Data!$B:$B,$B$8) -> 0.06257628982 | K14: =SUMIFS(Data!$D:$D,Data!$A:$A,$B14,Data!$C:$C,K$8,Data!$B:$B,$B$8) -> 0.05516016737 | L14: =SUMIFS(Data!$D:$D,Data!$A:$A,$B14,Data!$C:$C,L$8,Data!$B:$B,$B$8) -> 0.05616195265 | M14: =SUMIFS(Data!$D:$D,Data!$A:$A,$B14,Data!$C:$C,M$8,Data!$B:$B,$B$8) -> 0.04623990837
B16: =IF(C4 = "Inclusive", Inputs!F3,Inputs!F4) -> Allowed real rate of return | C16: 2014 | D16: 2015 | E16: 2016 | F16: 2017 | G16: 2018 | H16: 2019 | I16: 2020 | J16: 2021 | K16: 2022 | L16: 2023 | M16: 2024
B17: AGN Victoria | C17: =SUMIFS(Data!$D:$D,Data!$A:$A,$B17,Data!$C:$C,C$16,Data!$B:$B,$B$16) -> 0.05440758232 | D17: =SUMIFS(Data!$D:$D,Data!$A:$A,$B17,Data!$C:$C,D$16,Data!$B:$B,$B$16) -> 0.05440270917 | E17: =SUMIFS(Data!$D:$D,Data!$A:$A,$B17,Data!$C:$C,E$16,Data!$B:$B,$B$16) -> 0.0543987871 | F17: =SUMIFS(Data!$D:$D,Data!$A:$A,$B17,Data!$C:$C,F$16,Data!$B:$B,$B$16) -> 0.05439410074 | G17: =SUMIFS(Data!$D:$D,Data!$A:$A,$B17,Data!$C:$C,G$16,Data!$B:$B,$B$16) -> 0.0384269241 | H17: =SUMIFS(Data!$D:$D,Data!$A:$A,$B17,Data!$C:$C,H$16,Data!$B:$B,$B$16) -> 0.03835432325 | I17: =SUMIFS(Data!$D:$D,Data!$A:$A,$B17,Data!$C:$C,I$16,Data!$B:$B,$B$16) -> 0.03739434188 | J17: =SUMIFS(Data!$D:$D,Data!$A:$A,$B17,Data!$C:$C,J$16,Data!$B:$B,$B$16) -> 0.03605542632 | K17: =SUMIFS(Data!$D:$D,Data!$A:$A,$B17,Data!$C:$C,K$16,Data!$B:$B,$B$16) -> 0.03506533806 | L17: =SUMIFS(Data!$D:$D,Data!$A:$A,$B17,Data!$C:$C,L$16,Data!$B:$B,$B$16) -> -0.005112166165 | M17: =SUMIFS(Data!$D:$D,Data!$A:$A,$B17,Data!$C:$C,M$16,Data!$B:$B,$B$16) -> 0.02828234449
B18: AGN South Australia | C18: =SUMIFS(Data!$D:$D,Data!$A:$A,$B18,Data!$C:$C,C$16,Data!$B:$B,$B$16) -> 0.08366682525 | D18: =SUMIFS(Data!$D:$D,Data!$A:$A,$B18,Data!$C:$C,D$16,Data!$B:$B,$B$16) -> 0.08366682525 | E18: =SUMIFS(Data!$D:$D,Data!$A:$A,$B18,Data!$C:$C,E$16,Data!$B:$B,$B$16) -> 0.08366682525 | F18: =SUMIFS(Data!$D:$D,Data!$A:$A,$B18,Data!$C:$C,F$16,Data!$B:$B,$B$16) -> 0.0396111516 | G18: =SUMIFS(Data!$D:$D,Data!$A:$A,$B18,Data!$C:$C,G$16,Data!$B:$B,$B$16) -> 0.0393752239 | H18: =SUMIFS(Data!$D:$D,Data!$A:$A,$B18,Data!$C:$C,H$16,Data!$B:$B,$B$16) -> 0.03881616112 | I18: =SUMIFS(Data!$D:$D,Data!$A:$A,$B18,Data!$C:$C,I$16,Data!$B:$B,$B$16) -> 0.03812785741 | J18: =SUMIFS(Data!$D:$D,Data!$A:$A,$B18,Data!$C:$C,J$16,Data!$B:$B,$B$16) -> 0.03649985679 | K18: =SUMIFS(Data!$D:$D,Data!$A:$A,$B18,Data!$C:$C,K$16,Data!$B:$B,$B$16) -> 0.03081631525 | L18: =SUMIFS(Data!$D:$D,Data!$A:$A,$B18,Data!$C:$C,L$16,Data!$B:$B,$B$16) -> 0.030010929 | M18: =SUMIFS(Data!$D:$D,Data!$A:$A,$B18,Data!$C:$C,M$16,Data!$B:$B,$B$16) -> 0.03056169302
B19: AusNet Services | C19: =SUMIFS(Data!$D:$D,Data!$A:$A,$B19,Data!$C:$C,C$16,Data!$B:$B,$B$16) -> 0.05148494356 | D19: =SUMIFS(Data!$D:$D,Data!$A:$A,$B19,Data!$C:$C,D$16,Data!$B:$B,$B$16) -> 0.05148494356 | E19: =SUMIFS(Data!$D:$D,Data!$A:$A,$B19,Data!$C:$C,E$16,Data!$B:$B,$B$16) -> 0.05148494356 | F19: =SUMIFS(Data!$D:$D,Data!$A:$A,$B19,Data!$C:$C,F$16,Data!$B:$B,$B$16) -> 0.05148494356 | G19: =SUMIFS(Data!$D:$D,Data!$A:$A,$B19,Data!$C:$C,G$16,Data!$B:$B,$B$16) -> 0.04082545094 | H19: =SUMIFS(Data!$D:$D,Data!$A:$A,$B19,Data!$C:$C,H$16,Data!$B:$B,$B$16) -> 0.04054502908 | I19: =SUMIFS(Data!$D:$D,Data!$A:$A,$B19,Data!$C:$C,I$16,Data!$B:$B,$B$16) -> 0.03963850526 | J19: =SUMIFS(Data!$D:$D,Data!$A:$A,$B19,Data!$C:$C,J$16,Data!$B:$B,$B$16) -> 0.03830075603 | K19: =SUMIFS(Data!$D:$D,Data!$A:$A,$B19,Data!$C:$C,K$16,Data!$B:$B,$B$16) -> 0.03671699574 | L19: =SUMIFS(Data!$D:$D,Data!$A:$A,$B19,Data!$C:$C,L$16,Data!$B:$B,$B$16) -> -0.002453557921 | M19: =SUMIFS(Data!$D:$D,Data!$A:$A,$B19,Data!$C:$C,M$16,Data!$B:$B,$B$16) -> 0.02984001067
B20: Evoenergy | C20: =SUMIFS(Data!$D:$D,Data!$A:$A,$B20,Data!$C:$C,C$16,Data!$B:$B,$B$16) -> 0.07730434338 | D20: =SUMIFS(Data!$D:$D,Data!$A:$A,$B20,Data!$C:$C,D$16,Data!$B:$B,$B$16) -> 0.07730434338 | E20: =SUMIFS(Data!$D:$D,Data!$A:$A,$B20,Data!$C:$C,E$16,Data!$B:$B,$B$16) -> 0.0418795184 | F20: =SUMIFS(Data!$D:$D,Data!$A:$A,$B20,Data!$C:$C,F$16,Data!$B:$B,$B$16) -> 0.04202474769 | G20: =SUMIFS(Data!$D:$D,Data!$A:$A,$B20,Data!$C:$C,G$16,Data!$B:$B,$B$16) -> 0.04181943982 | H20: =SUMIFS(Data!$D:$D,Data!$A:$A,$B20,Data!$C:$C,H$16,Data!$B:$B,$B$16) -> 0.04129223738 | I20: =SUMIFS(Data!$D:$D,Data!$A:$A,$B20,Data!$C:$C,I$16,Data!$B:$B,$B$16) -> 0.0409827897 | J20: =SUMIFS(Data!$D:$D,Data!$A:$A,$B20,Data!$C:$C,J$16,Data!$B:$B,$B$16) -> 0.0396793719 | K20: =SUMIFS(Data!$D:$D,Data!$A:$A,$B20,Data!$C:$C,K$16,Data!$B:$B,$B$16) -> 0.03028162153 | L20: =SUMIFS(Data!$D:$D,Data!$A:$A,$B20,Data!$C:$C,L$16,Data!$B:$B,$B$16) -> 0.02922237444 | M20: =SUMIFS(Data!$D:$D,Data!$A:$A,$B20,Data!$C:$C,M$16,Data!$B:$B,$B$16) -> 0.03004791117
B21: Jemena Gas Networks | C21: =SUMIFS(Data!$D:$D,Data!$A:$A,$B21,Data!$C:$C,C$16,Data!$B:$B,$B$16) -> 0.08392575615 | D21: =SUMIFS(Data!$D:$D,Data!$A:$A,$B21,Data!$C:$C,D$16,Data!$B:$B,$B$16) -> 0.08392575615 | E21: =SUMIFS(Data!$D:$D,Data!$A:$A,$B21,Data!$C:$C,E$16,Data!$B:$B,$B$16) -> 0.03022128466 | F21: =SUMIFS(Data!$D:$D,Data!$A:$A,$B21,Data!$C:$C,F$16,Data!$B:$B,$B$16) -> 0.03089358881 | G21: =SUMIFS(Data!$D:$D,Data!$A:$A,$B21,Data!$C:$C,G$16,Data!$B:$B,$B$16) -> 0.03135881185 | H21: =SUMIFS(Data!$D:$D,Data!$A:$A,$B21,Data!$C:$C,H$16,Data!$B:$B,$B$16) -> 0.03153423872 | I21: =SUMIFS(Data!$D:$D,Data!$A:$A,$B21,Data!$C:$C,I$16,Data!$B:$B,$B$16) -> 0.03153423872 | J21: =SUMIFS(Data!$D:$D,Data!$A:$A,$B21,Data!$C:$C,J$16,Data!$B:$B,$B$16) -> 0.02514143545 | K21: =SUMIFS(Data!$D:$D,Data!$A:$A,$B21,Data!$C:$C,K$16,Data!$B:$B,$B$16) -> 0.02394163743 | L21: =SUMIFS(Data!$D:$D,Data!$A:$A,$B21,Data!$C:$C,L$16,Data!$B:$B,$B$16) -> 0.02369949902 | M21: =SUMIFS(Data!$D:$D,Data!$A:$A,$B21,Data!$C:$C,M$16,Data!$B:$B,$B$16) -> 0.02485537958
B22: Multinet Gas | C22: =SUMIFS(Data!$D:$D,Data!$A:$A,$B22,Data!$C:$C,C$16,Data!$B:$B,$B$16) -> 0.05329924974 | D22: =SUMIFS(Data!$D:$D,Data!$A:$A,$B22,Data!$C:$C,D$16,Data!$B:$B,$B$16) -> 0.05329924974 | E22: =SUMIFS(Data!$D:$D,Data!$A:$A,$B22,Data!$C:$C,E$16,Data!$B:$B,$B$16) -> 0.05329924974 | F22: =SUMIFS(Data!$D:$D,Data!$A:$A,$B22,Data!$C:$C,F$16,Data!$B:$B,$B$16) -> 0.05329924974 | G22: =SUMIFS(Data!$D:$D,Data!$A:$A,$B22,Data!$C:$C,G$16,Data!$B:$B,$B$16) -> 0.04001077742 | H22: =SUMIFS(Data!$D:$D,Data!$A:$A,$B22,Data!$C:$C,H$16,Data!$B:$B,$B$16) -> 0.03997435046 | I22: =SUMIFS(Data!$D:$D,Data!$A:$A,$B22,Data!$C:$C,I$16,Data!$B:$B,$B$16) -> 0.03903238881 | J22: =SUMIFS(Data!$D:$D,Data!$A:$A,$B22,Data!$C:$C,J$16,Data!$B:$B,$B$16) -> 0.03776885784 | K22: =SUMIFS(Data!$D:$D,Data!$A:$A,$B22,Data!$C:$C,K$16,Data!$B:$B,$B$16) -> 0.03657695736 | L22: =SUMIFS(Data!$D:$D,Data!$A:$A,$B22,Data!$C:$C,L$16,Data!$B:$B,$B$16) -> -0.001439795777 | M22: =SUMIFS(Data!$D:$D,Data!$A:$A,$B22,Data!$C:$C,M$16,Data!$B:$B,$B$16) -> 0.02829695663
B24: Return on regulated equity
B26: =IF(C4="Inclusive",Inputs!F11,Inputs!F12) -> Real return on regulated equity | C26: 2014 | D26: 2015 | E26: 2016 | F26: 2017 | G26: 2018 | H26: 2019 | I26: 2020 | J26: 2021 | K26: 2022 | L26: 2023 | M26: 2024
B27: AGN Victoria | C27: =SUMIFS(Data!$D:$D,Data!$A:$A,$B27,Data!$C:$C,C$26,Data!$B:$B,$B$26) -> 0.1313638218 | D27: =SUMIFS(Data!$D:$D,Data!$A:$A,$B27,Data!$C:$C,D$26,Data!$B:$B,$B$26) -> 0.08982451622 | E27: =SUMIFS(Data!$D:$D,Data!$A:$A,$B27,Data!$C:$C,E$26,Data!$B:$B,$B$26) -> 0.08271971433 | F27: =SUMIFS(Data!$D:$D,Data!$A:$A,$B27,Data!$C:$C,F$26,Data!$B:$B,$B$26) -> 0.0855537211 | G27: =SUMIFS(Data!$D:$D,Data!$A:$A,$B27,Data!$C:$C,G$26,Data!$B:$B,$B$26) -> 0.06082325458 | H27: =SUMIFS(Data!$D:$D,Data!$A:$A,$B27,Data!$C:$C,H$26,Data!$B:$B,$B$26) -> 0.06076634476 | I27: =SUMIFS(Data!$D:$D,Data!$A:$A,$B27,Data!$C:$C,I$26,Data!$B:$B,$B$26) -> 0.05237048867 | J27: =SUMIFS(Data!$D:$D,Data!$A:$A,$B27,Data!$C:$C,J$26,Data!$B:$B,$B$26) -> 0.03869156964 | K27: =SUMIFS(Data!$D:$D,Data!$A:$A,$B27,Data!$C:$C,K$26,Data!$B:$B,$B$26) -> 0.08372117784 | L27: =SUMIFS(Data!$D:$D,Data!$A:$A,$B27,Data!$C:$C,L$26,Data!$B:$B,$B$26) -> 0.0886888644 | M27: =SUMIFS(Data!$D:$D,Data!$A:$A,$B27,Data!$C:$C,M$26,Data!$B:$B,$B$26) -> 0.08118131074
B28: AGN South Australia | C28: =SUMIFS(Data!$D:$D,Data!$A:$A,$B28,Data!$C:$C,C$26,Data!$B:$B,$B$26) -> 0.2973002156 | D28: =SUMIFS(Data!$D:$D,Data!$A:$A,$B28,Data!$C:$C,D$26,Data!$B:$B,$B$26) -> 0.2236684852 | E28: =SUMIFS(Data!$D:$D,Data!$A:$A,$B28,Data!$C:$C,E$26,Data!$B:$B,$B$26) -> 0.1193152844 | F28: =SUMIFS(Data!$D:$D,Data!$A:$A,$B28,Data!$C:$C,F$26,Data!$B:$B,$B$26) -> 0.08266616746 | G28: =SUMIFS(Data!$D:$D,Data!$A:$A,$B28,Data!$C:$C,G$26,Data!$B:$B,$B$26) -> 0.07928688766 | H28: =SUMIFS(Data!$D:$D,Data!$A:$A,$B28,Data!$C:$C,H$26,Data!$B:$B,$B$26) -> 0.08639761868 | I28: =SUMIFS(Data!$D:$D,Data!$A:$A,$B28,Data!$C:$C,I$26,Data!$B:$B,$B$26) -> 0.09210895822 | J28: =SUMIFS(Data!$D:$D,Data!$A:$A,$B28,Data!$C:$C,J$26,Data!$B:$B,$B$26) -> 0.08420023067 | K28: =SUMIFS(Data!$D:$D,Data!$A:$A,$B28,Data!$C:$C,K$26,Data!$B:$B,$B$26) -> 0.08671075712 | L28: =SUMIFS(Data!$D:$D,Data!$A:$A,$B28,Data!$C:$C,L$26,Data!$B:$B,$B$26) -> 0.1282572452 | M28: =SUMIFS(Data!$D:$D,Data!$A:$A,$B28,Data!$C:$C,M$26,Data!$B:$B,$B$26) -> 0.08026793915
B29: AusNet Services | C29: =SUMIFS(Data!$D:$D,Data!$A:$A,$B29,Data!$C:$C,C$26,Data!$B:$B,$B$26) -> 0.0548121395 | D29: =SUMIFS(Data!$D:$D,Data!$A:$A,$B29,Data!$C:$C,D$26,Data!$B:$B,$B$26) -> 0.06586103135 | E29: =SUMIFS(Data!$D:$D,Data!$A:$A,$B29,Data!$C:$C,E$26,Data!$B:$B,$B$26) -> 0.07591943504 | F29: =SUMIFS(Data!$D:$D,Data!$A:$A,$B29,Data!$C:$C,F$26,Data!$B:$B,$B$26) -> 0.06227056629 | G29: =SUMIFS(Data!$D:$D,Data!$A:$A,$B29,Data!$C:$C,G$26,Data!$B:$B,$B$26) -> 0.03565897197 | H29: =SUMIFS(Data!$D:$D,Data!$A:$A,$B29,Data!$C:$C,H$26,Data!$B:$B,$B$26) -> 0.06560088447 | I29: =SUMIFS(Data!$D:$D,Data!$A:$A,$B29,Data!$C:$C,I$26,Data!$B:$B,$B$26) -> 0.06025114518 | J29: =SUMIFS(Data!$D:$D,Data!$A:$A,$B29,Data!$C:$C,J$26,Data!$B:$B,$B$26) -> 0.01532580816 | K29: =SUMIFS(Data!$D:$D,Data!$A:$A,$B29,Data!$C:$C,K$26,Data!$B:$B,$B$26) -> 0.07948732897 | L29: =SUMIFS(Data!$D:$D,Data!$A:$A,$B29,Data!$C:$C,L$26,Data!$B:$B,$B$26) -> 0.1325935631 | M29: =SUMIFS(Data!$D:$D,Data!$A:$A,$B29,Data!$C:$C,M$26,Data!$B:$B,$B$26) -> 0.1414151359
B30: Evoenergy | C30: =SUMIFS(Data!$D:$D,Data!$A:$A,$B30,Data!$C:$C,C$26,Data!$B:$B,$B$26) -> 0.08295435864 | D30: =SUMIFS(Data!$D:$D,Data!$A:$A,$B30,Data!$C:$C,D$26,Data!$B:$B,$B$26) -> 0.08773796847 | E30: =SUMIFS(Data!$D:$D,Data!$A:$A,$B30,Data!$C:$C,E$26,Data!$B:$B,$B$26) -> 0.08392065458 | F30: =SUMIFS(Data!$D:$D,Data!$A:$A,$B30,Data!$C:$C,F$26,Data!$B:$B,$B$26) -> 0.04668446915 | G30: =SUMIFS(Data!$D:$D,Data!$A:$A,$B30,Data!$C:$C,G$26,Data!$B:$B,$B$26) -> 0.03809862702 | H30: =SUMIFS(Data!$D:$D,Data!$A:$A,$B30,Data!$C:$C,H$26,Data!$B:$B,$B$26) -> 0.03544884989 | I30: =SUMIFS(Data!$D:$D,Data!$A:$A,$B30,Data!$C:$C,I$26,Data!$B:$B,$B$26) -> 0.03355724604 | J30: =SUMIFS(Data!$D:$D,Data!$A:$A,$B30,Data!$C:$C,J$26,Data!$B:$B,$B$26) -> 0.03570595879 | K30: =SUMIFS(Data!$D:$D,Data!$A:$A,$B30,Data!$C:$C,K$26,Data!$B:$B,$B$26) -> 0.04585604608 | L30: =SUMIFS(Data!$D:$D,Data!$A:$A,$B30,Data!$C:$C,L$26,Data!$B:$B,$B$26) -> 0.04245268756 | M30: =SUMIFS(Data!$D:$D,Data!$A:$A,$B30,Data!$C:$C,M$26,Data!$B:$B,$B$26) -> 0.02655075081
B31: Jemena Gas Networks | C31: =SUMIFS(Data!$D:$D,Data!$A:$A,$B31,Data!$C:$C,C$26,Data!$B:$B,$B$26) -> 0.1682962179 | D31: =SUMIFS(Data!$D:$D,Data!$A:$A,$B31,Data!$C:$C,D$26,Data!$B:$B,$B$26) -> 0.2091754014 | E31: =SUMIFS(Data!$D:$D,Data!$A:$A,$B31,Data!$C:$C,E$26,Data!$B:$B,$B$26) -> 0.1123122143 | F31: =SUMIFS(Data!$D:$D,Data!$A:$A,$B31,Data!$C:$C,F$26,Data!$B:$B,$B$26) -> 0.1135881067 | G31: =SUMIFS(Data!$D:$D,Data!$A:$A,$B31,Data!$C:$C,G$26,Data!$B:$B,$B$26) -> 0.08529032565 | H31: =SUMIFS(Data!$D:$D,Data!$A:$A,$B31,Data!$C:$C,H$26,Data!$B:$B,$B$26) -> 0.0671991603 | I31: =SUMIFS(Data!$D:$D,Data!$A:$A,$B31,Data!$C:$C,I$26,Data!$B:$B,$B$26) -> 0.03396944511 | J31: =SUMIFS(Data!$D:$D,Data!$A:$A,$B31,Data!$C:$C,J$26,Data!$B:$B,$B$26) -> 0.05769805598 | K31: =SUMIFS(Data!$D:$D,Data!$A:$A,$B31,Data!$C:$C,K$26,Data!$B:$B,$B$26) -> 0.09123711223 | L31: =SUMIFS(Data!$D:$D,Data!$A:$A,$B31,Data!$C:$C,L$26,Data!$B:$B,$B$26) -> 0.09111130072 | M31: =SUMIFS(Data!$D:$D,Data!$A:$A,$B31,Data!$C:$C,M$26,Data!$B:$B,$B$26) -> 0.02290926935
B32: Multinet Gas | C32: =SUMIFS(Data!$D:$D,Data!$A:$A,$B32,Data!$C:$C,C$26,Data!$B:$B,$B$26) -> 0.2322136971 | D32: =SUMIFS(Data!$D:$D,Data!$A:$A,$B32,Data!$C:$C,D$26,Data!$B:$B,$B$26) -> 0.120495847 | E32: =SUMIFS(Data!$D:$D,Data!$A:$A,$B32,Data!$C:$C,E$26,Data!$B:$B,$B$26) -> 0.08860326929 | F32: =SUMIFS(Data!$D:$D,Data!$A:$A,$B32,Data!$C:$C,F$26,Data!$B:$B,$B$26) -> 0.1413961069 | G32: =SUMIFS(Data!$D:$D,Data!$A:$A,$B32,Data!$C:$C,G$26,Data!$B:$B,$B$26) -> 0.09138458647 | H32: =SUMIFS(Data!$D:$D,Data!$A:$A,$B32,Data!$C:$C,H$26,Data!$B:$B,$B$26) -> 0.09783986754 | I32: =SUMIFS(Data!$D:$D,Data!$A:$A,$B32,Data!$C:$C,I$26,Data!$B:$B,$B$26) -> 0.08908316234 | J32: =SUMIFS(Data!$D:$D,Data!$A:$A,$B32,Data!$C:$C,J$26,Data!$B:$B,$B$26) -> 0.0583319973 | K32: =SUMIFS(Data!$D:$D,Data!$A:$A,$B32,Data!$C:$C,K$26,Data!$B:$B,$B$26) -> 0.09436556282 | L32: =SUMIFS(Data!$D:$D,Data!$A:$A,$B32,Data!$C:$C,L$26,Data!$B:$B,$B$26) -> 0.1063083242 | M32: =SUMIFS(Data!$D:$D,Data!$A:$A,$B32,Data!$C:$C,M$26,Data!$B:$B,$B$26) -> 0.1260282393
B34: =IF(C4 = "Inclusive", Inputs!F5,Inputs!F6) -> Allowed real return on equity | C34: 2014 | D34: 2015 | E34: 2016 | F34: 2017 | G34: 2018 | H34: 2019 | I34: 2020 | J34: 2021 | K34: 2022 | L34: 2023 | M34: 2024
B35: AGN Victoria | C35: =SUMIFS(Data!$D:$D,Data!$A:$A,$B35,Data!$C:$C,C$34,Data!$B:$B,$B$34) -> 0.05691707317 | D35: =SUMIFS(Data!$D:$D,Data!$A:$A,$B35,Data!$C:$C,D$34,Data!$B:$B,$B$34) -> 0.05691707317 | E35: =SUMIFS(Data!$D:$D,Data!$A:$A,$B35,Data!$C:$C,E$34,Data!$B:$B,$B$34) -> 0.05691707317 | F35: =SUMIFS(Data!$D:$D,Data!$A:$A,$B35,Data!$C:$C,F$34,Data!$B:$B,$B$34) -> 0.05691707317 | G35: =SUMIFS(Data!$D:$D,Data!$A:$A,$B35,Data!$C:$C,G$34,Data!$B:$B,$B$34) -> 0.04734066535 | H35: =SUMIFS(Data!$D:$D,Data!$A:$A,$B35,Data!$C:$C,H$34,Data!$B:$B,$B$34) -> 0.04734066535 | I35: =SUMIFS(Data!$D:$D,Data!$A:$A,$B35,Data!$C:$C,I$34,Data!$B:$B,$B$34) -> 0.04734066535 | J35: =SUMIFS(Data!$D:$D,Data!$A:$A,$B35,Data!$C:$C,J$34,Data!$B:$B,$B$34) -> 0.04734066535 | K35: =SUMIFS(Data!$D:$D,Data!$A:$A,$B35,Data!$C:$C,K$34,Data!$B:$B,$B$34) -> 0.04734066535 | L35: =SUMIFS(Data!$D:$D,Data!$A:$A,$B35,Data!$C:$C,L$34,Data!$B:$B,$B$34) -> 0.007472777561 | M35: =SUMIFS(Data!$D:$D,Data!$A:$A,$B35,Data!$C:$C,M$34,Data!$B:$B,$B$34) -> 0.04205596255
B36: AGN South Australia | C36: =SUMIFS(Data!$D:$D,Data!$A:$A,$B36,Data!$C:$C,C$34,Data!$B:$B,$B$34) -> 0.07615797172 | D36: =SUMIFS(Data!$D:$D,Data!$A:$A,$B36,Data!$C:$C,D$34,Data!$B:$B,$B$34) -> 0.07615797172 | E36: =SUMIFS(Data!$D:$D,Data!$A:$A,$B36,Data!$C:$C,E$34,Data!$B:$B,$B$34) -> 0.07615797172 | F36: =SUMIFS(Data!$D:$D,Data!$A:$A,$B36,Data!$C:$C,F$34,Data!$B:$B,$B$34) -> 0.04599158336 | G36: =SUMIFS(Data!$D:$D,Data!$A:$A,$B36,Data!$C:$C,G$34,Data!$B:$B,$B$34) -> 0.04599158336 | H36: =SUMIFS(Data!$D:$D,Data!$A:$A,$B36,Data!$C:$C,H$34,Data!$B:$B,$B$34) -> 0.04599158336 | I36: =SUMIFS(Data!$D:$D,Data!$A:$A,$B36,Data!$C:$C,I$34,Data!$B:$B,$B$34) -> 0.04599158336 | J36: =SUMIFS(Data!$D:$D,Data!$A:$A,$B36,Data!$C:$C,J$34,Data!$B:$B,$B$34) -> 0.04599158336 | K36: =SUMIFS(Data!$D:$D,Data!$A:$A,$B36,Data!$C:$C,K$34,Data!$B:$B,$B$34) -> 0.03304358539 | L36: =SUMIFS(Data!$D:$D,Data!$A:$A,$B36,Data!$C:$C,L$34,Data!$B:$B,$B$34) -> 0.03304358539 | M36: =SUMIFS(Data!$D:$D,Data!$A:$A,$B36,Data!$C:$C,M$34,Data!$B:$B,$B$34) -> 0.03304358539
B37: AusNet Services | C37: =SUMIFS(Data!$D:$D,Data!$A:$A,$B37,Data!$C:$C,C$34,Data!$B:$B,$B$34) -> 0.0531004878 | D37: =SUMIFS(Data!$D:$D,Data!$A:$A,$B37,Data!$C:$C,D$34,Data!$B:$B,$B$34) -> 0.0531004878 | E37: =SUMIFS(Data!$D:$D,Data!$A:$A,$B37,Data!$C:$C,E$34,Data!$B:$B,$B$34) -> 0.0531004878 | F37: =SUMIFS(Data!$D:$D,Data!$A:$A,$B37,Data!$C:$C,F$34,Data!$B:$B,$B$34) -> 0.0531004878 | G37: =SUMIFS(Data!$D:$D,Data!$A:$A,$B37,Data!$C:$C,G$34,Data!$B:$B,$B$34) -> 0.04734066535 | H37: =SUMIFS(Data!$D:$D,Data!$A:$A,$B37,Data!$C:$C,H$34,Data!$B:$B,$B$34) -> 0.04734066535 | I37: =SUMIFS(Data!$D:$D,Data!$A:$A,$B37,Data!$C:$C,I$34,Data!$B:$B,$B$34) -> 0.04734066535 | J37: =SUMIFS(Data!$D:$D,Data!$A:$A,$B37,Data!$C:$C,J$34,Data!$B:$B,$B$34) -> 0.04734066535 | K37: =SUMIFS(Data!$D:$D,Data!$A:$A,$B37,Data!$C:$C,K$34,Data!$B:$B,$B$34) -> 0.04734066535 | L37: =SUMIFS(Data!$D:$D,Data!$A:$A,$B37,Data!$C:$C,L$34,Data!$B:$B,$B$34) -> 0.008813864932 | M37: =SUMIFS(Data!$D:$D,Data!$A:$A,$B37,Data!$C:$C,M$34,Data!$B:$B,$B$34) -> 0.04249540876
B38: Evoenergy | C38: =SUMIFS(Data!$D:$D,Data!$A:$A,$B38,Data!$C:$C,C$34,Data!$B:$B,$B$34) -> 0.08105735466 | D38: =SUMIFS(Data!$D:$D,Data!$A:$A,$B38,Data!$C:$C,D$34,Data!$B:$B,$B$34) -> 0.08105735466 | E38: =SUMIFS(Data!$D:$D,Data!$A:$A,$B38,Data!$C:$C,E$34,Data!$B:$B,$B$34) -> 0.04744346931 | F38: =SUMIFS(Data!$D:$D,Data!$A:$A,$B38,Data!$C:$C,F$34,Data!$B:$B,$B$34) -> 0.04744346931 | G38: =SUMIFS(Data!$D:$D,Data!$A:$A,$B38,Data!$C:$C,G$34,Data!$B:$B,$B$34) -> 0.04744346931 | H38: =SUMIFS(Data!$D:$D,Data!$A:$A,$B38,Data!$C:$C,H$34,Data!$B:$B,$B$34) -> 0.04744346931 | I38: =SUMIFS(Data!$D:$D,Data!$A:$A,$B38,Data!$C:$C,I$34,Data!$B:$B,$B$34) -> 0.04744346931 | J38: =SUMIFS(Data!$D:$D,Data!$A:$A,$B38,Data!$C:$C,J$34,Data!$B:$B,$B$34) -> 0.04744346931 | K38: =SUMIFS(Data!$D:$D,Data!$A:$A,$B38,Data!$C:$C,K$34,Data!$B:$B,$B$34) -> 0.03006682564 | L38: =SUMIFS(Data!$D:$D,Data!$A:$A,$B38,Data!$C:$C,L$34,Data!$B:$B,$B$34) -> 0.03006682564 | M38: =SUMIFS(Data!$D:$D,Data!$A:$A,$B38,Data!$C:$C,M$34,Data!$B:$B,$B$34) -> 0.03006682564
B39: Jemena Gas Networks | C39: =SUMIFS(Data!$D:$D,Data!$A:$A,$B39,Data!$C:$C,C$34,Data!$B:$B,$B$34) -> 0.08235867446 | D39: =SUMIFS(Data!$D:$D,Data!$A:$A,$B39,Data!$C:$C,D$34,Data!$B:$B,$B$34) -> 0.08235867446 | E39: =SUMIFS(Data!$D:$D,Data!$A:$A,$B39,Data!$C:$C,E$34,Data!$B:$B,$B$34) -> 0.04436860068 | F39: =SUMIFS(Data!$D:$D,Data!$A:$A,$B39,Data!$C:$C,F$34,Data!$B:$B,$B$34) -> 0.04436860068 | G39: =SUMIFS(Data!$D:$D,Data!$A:$A,$B39,Data!$C:$C,G$34,Data!$B:$B,$B$34) -> 0.04436860068 | H39: =SUMIFS(Data!$D:$D,Data!$A:$A,$B39,Data!$C:$C,H$34,Data!$B:$B,$B$34) -> 0.04436860068 | I39: =SUMIFS(Data!$D:$D,Data!$A:$A,$B39,Data!$C:$C,I$34,Data!$B:$B,$B$34) -> 0.04436860068 | J39: =SUMIFS(Data!$D:$D,Data!$A:$A,$B39,Data!$C:$C,J$34,Data!$B:$B,$B$34) -> 0.02359042723 | K39: =SUMIFS(Data!$D:$D,Data!$A:$A,$B39,Data!$C:$C,K$34,Data!$B:$B,$B$34) -> 0.02359042723 | L39: =SUMIFS(Data!$D:$D,Data!$A:$A,$B39,Data!$C:$C,L$34,Data!$B:$B,$B$34) -> 0.02359042723 | M39: =SUMIFS(Data!$D:$D,Data!$A:$A,$B39,Data!$C:$C,M$34,Data!$B:$B,$B$34) -> 0.02359042723
B40: Multinet Gas | C40: =SUMIFS(Data!$D:$D,Data!$A:$A,$B40,Data!$C:$C,C$34,Data!$B:$B,$B$34) -> 0.05286146341 | D40: =SUMIFS(Data!$D:$D,Data!$A:$A,$B40,Data!$C:$C,D$34,Data!$B:$B,$B$34) -> 0.05286146341 | E40: =SUMIFS(Data!$D:$D,Data!$A:$A,$B40,Data!$C:$C,E$34,Data!$B:$B,$B$34) -> 0.05286146341 | F40: =SUMIFS(Data!$D:$D,Data!$A:$A,$B40,Data!$C:$C,F$34,Data!$B:$B,$B$34) -> 0.05286146341 | G40: =SUMIFS(Data!$D:$D,Data!$A:$A,$B40,Data!$C:$C,G$34,Data!$B:$B,$B$34) -> 0.04636457898 | H40: =SUMIFS(Data!$D:$D,Data!$A:$A,$B40,Data!$C:$C,H$34,Data!$B:$B,$B$34) -> 0.04636457898 | I40: =SUMIFS(Data!$D:$D,Data!$A:$A,$B40,Data!$C:$C,I$34,Data!$B:$B,$B$34) -> 0.04636457898 | J40: =SUMIFS(Data!$D:$D,Data!$A:$A,$B40,Data!$C:$C,J$34,Data!$B:$B,$B$34) -> 0.04636457898 | K40: =SUMIFS(Data!$D:$D,Data!$A:$A,$B40,Data!$C:$C,K$34,Data!$B:$B,$B$34) -> 0.04636457898 | L40: =SUMIFS(Data!$D:$D,Data!$A:$A,$B40,Data!$C:$C,L$34,Data!$B:$B,$B$34) -> 0.007472777561 | M40: =SUMIFS(Data!$D:$D,Data!$A:$A,$B40,Data!$C:$C,M$34,Data!$B:$B,$B$34) -> 0.04205596255
B42: =IF(C4="Inclusive",Inputs!F9,Inputs!F10) -> EBIT per customer - Excluding returns from capital base indexation
B44: EBIT per customer | C44: 2014 | D44: 2015 | E44: 2016 | F44: 2017 | G44: 2018 | H44: 2019 | I44: 2020 | J44: 2021 | K44: 2022 | L44: 2023 | M44: 2024
B45: AGN Victoria | C45: =SUMIFS(Data!$D:$D,Data!$A:$A,$B45,Data!$C:$C,C$44,Data!$B:$B,$B$42) -> 132.2172565 | D45: =SUMIFS(Data!$D:$D,Data!$A:$A,$B45,Data!$C:$C,D$44,Data!$B:$B,$B$42) -> 164.6894241 | E45: =SUMIFS(Data!$D:$D,Data!$A:$A,$B45,Data!$C:$C,E$44,Data!$B:$B,$B$42) -> 161.7614898 | F45: =SUMIFS(Data!$D:$D,Data!$A:$A,$B45,Data!$C:$C,F$44,Data!$B:$B,$B$42) -> 177.089657 | G45: =SUMIFS(Data!$D:$D,Data!$A:$A,$B45,Data!$C:$C,G$44,Data!$B:$B,$B$42) -> 129.556943 | H45: =SUMIFS(Data!$D:$D,Data!$A:$A,$B45,Data!$C:$C,H$44,Data!$B:$B,$B$42) -> 126.8756974 | I45: =SUMIFS(Data!$D:$D,Data!$A:$A,$B45,Data!$C:$C,I$44,Data!$B:$B,$B$42) -> 131.5084796 | J45: =SUMIFS(Data!$D:$D,Data!$A:$A,$B45,Data!$C:$C,J$44,Data!$B:$B,$B$42) -> 133.6286466 | K45: =SUMIFS(Data!$D:$D,Data!$A:$A,$B45,Data!$C:$C,K$44,Data!$B:$B,$B$42) -> 132.9829266 | L45: =SUMIFS(Data!$D:$D,Data!$A:$A,$B45,Data!$C:$C,L$44,Data!$B:$B,$B$42) -> 141.1683115 | M45: =SUMIFS(Data!$D:$D,Data!$A:$A,$B45,Data!$C:$C,M$44,Data!$B:$B,$B$42) -> 89.5273484
B46: AGN South Australia | C46: =SUMIFS(Data!$D:$D,Data!$A:$A,$B46,Data!$C:$C,C$44,Data!$B:$B,$B$42) -> 296.9179623 | D46: =SUMIFS(Data!$D:$D,Data!$A:$A,$B46,Data!$C:$C,D$44,Data!$B:$B,$B$42) -> 301.9905654 | E46: =SUMIFS(Data!$D:$D,Data!$A:$A,$B46,Data!$C:$C,E$44,Data!$B:$B,$B$42) -> 307.70859 | F46: =SUMIFS(Data!$D:$D,Data!$A:$A,$B46,Data!$C:$C,F$44,Data!$B:$B,$B$42) -> 214.6477568 | G46: =SUMIFS(Data!$D:$D,Data!$A:$A,$B46,Data!$C:$C,G$44,Data!$B:$B,$B$42) -> 203.3403707 | H46: =SUMIFS(Data!$D:$D,Data!$A:$A,$B46,Data!$C:$C,H$44,Data!$B:$B,$B$42) -> 217.5166899 | I46: =SUMIFS(Data!$D:$D,Data!$A:$A,$B46,Data!$C:$C,I$44,Data!$B:$B,$B$42) -> 237.4349004 | J46: =SUMIFS(Data!$D:$D,Data!$A:$A,$B46,Data!$C:$C,J$44,Data!$B:$B,$B$42) -> 251.7822572 | K46: =SUMIFS(Data!$D:$D,Data!$A:$A,$B46,Data!$C:$C,K$44,Data!$B:$B,$B$42) -> 169.2724754 | L46: =SUMIFS(Data!$D:$D,Data!$A:$A,$B46,Data!$C:$C,L$44,Data!$B:$B,$B$42) -> 178.6800155 | M46: =SUMIFS(Data!$D:$D,Data!$A:$A,$B46,Data!$C:$C,M$44,Data!$B:$B,$B$42) -> 177.1305789
B47: AusNet Services | C47: =SUMIFS(Data!$D:$D,Data!$A:$A,$B47,Data!$C:$C,C$44,Data!$B:$B,$B$42) -> 98.22935957 | D47: =SUMIFS(Data!$D:$D,Data!$A:$A,$B47,Data!$C:$C,D$44,Data!$B:$B,$B$42) -> 108.1042916 | E47: =SUMIFS(Data!$D:$D,Data!$A:$A,$B47,Data!$C:$C,E$44,Data!$B:$B,$B$42) -> 125.4265367 | F47: =SUMIFS(Data!$D:$D,Data!$A:$A,$B47,Data!$C:$C,F$44,Data!$B:$B,$B$42) -> 124.770445 | G47: =SUMIFS(Data!$D:$D,Data!$A:$A,$B47,Data!$C:$C,G$44,Data!$B:$B,$B$42) -> 81.85486207 | H47: =SUMIFS(Data!$D:$D,Data!$A:$A,$B47,Data!$C:$C,H$44,Data!$B:$B,$B$42) -> 102.6921775 | I47: =SUMIFS(Data!$D:$D,Data!$A:$A,$B47,Data!$C:$C,I$44,Data!$B:$B,$B$42) -> 105.770297 | J47: =SUMIFS(Data!$D:$D,Data!$A:$A,$B47,Data!$C:$C,J$44,Data!$B:$B,$B$42) -> 101.4833256 | K47: =SUMIFS(Data!$D:$D,Data!$A:$A,$B47,Data!$C:$C,K$44,Data!$B:$B,$B$42) -> 82.018811 | L47: =SUMIFS(Data!$D:$D,Data!$A:$A,$B47,Data!$C:$C,L$44,Data!$B:$B,$B$42) -> 87.46405429 | M47: =SUMIFS(Data!$D:$D,Data!$A:$A,$B47,Data!$C:$C,M$44,Data!$B:$B,$B$42) -> 85.30141752
B48: Evoenergy | C48: =SUMIFS(Data!$D:$D,Data!$A:$A,$B48,Data!$C:$C,C$44,Data!$B:$B,$B$42) -> 232.5063785 | D48: =SUMIFS(Data!$D:$D,Data!$A:$A,$B48,Data!$C:$C,D$44,Data!$B:$B,$B$42) -> 247.5641935 | E48: =SUMIFS(Data!$D:$D,Data!$A:$A,$B48,Data!$C:$C,E$44,Data!$B:$B,$B$42) -> 257.1942565 | F48: =SUMIFS(Data!$D:$D,Data!$A:$A,$B48,Data!$C:$C,F$44,Data!$B:$B,$B$42) -> 145.5206943 | G48: =SUMIFS(Data!$D:$D,Data!$A:$A,$B48,Data!$C:$C,G$44,Data!$B:$B,$B$42) -> 122.1316761 | H48: =SUMIFS(Data!$D:$D,Data!$A:$A,$B48,Data!$C:$C,H$44,Data!$B:$B,$B$42) -> 114.547545 | I48: =SUMIFS(Data!$D:$D,Data!$A:$A,$B48,Data!$C:$C,I$44,Data!$B:$B,$B$42) -> 108.6265596 | J48: =SUMIFS(Data!$D:$D,Data!$A:$A,$B48,Data!$C:$C,J$44,Data!$B:$B,$B$42) -> 130.2013739 | K48: =SUMIFS(Data!$D:$D,Data!$A:$A,$B48,Data!$C:$C,K$44,Data!$B:$B,$B$42) -> 134.4998453 | L48: =SUMIFS(Data!$D:$D,Data!$A:$A,$B48,Data!$C:$C,L$44,Data!$B:$B,$B$42) -> 131.4523767 | M48: =SUMIFS(Data!$D:$D,Data!$A:$A,$B48,Data!$C:$C,M$44,Data!$B:$B,$B$42) -> 94.65066589
B49: Jemena Gas Networks | C49: =SUMIFS(Data!$D:$D,Data!$A:$A,$B49,Data!$C:$C,C$44,Data!$B:$B,$B$42) -> 251.834864 | D49: =SUMIFS(Data!$D:$D,Data!$A:$A,$B49,Data!$C:$C,D$44,Data!$B:$B,$B$42) -> 310.8321057 | E49: =SUMIFS(Data!$D:$D,Data!$A:$A,$B49,Data!$C:$C,E$44,Data!$B:$B,$B$42) -> 183.2149273 | F49: =SUMIFS(Data!$D:$D,Data!$A:$A,$B49,Data!$C:$C,F$44,Data!$B:$B,$B$42) -> 179.8768945 | G49: =SUMIFS(Data!$D:$D,Data!$A:$A,$B49,Data!$C:$C,G$44,Data!$B:$B,$B$42) -> 138.0030227 | H49: =SUMIFS(Data!$D:$D,Data!$A:$A,$B49,Data!$C:$C,H$44,Data!$B:$B,$B$42) -> 115.7853425 | I49: =SUMIFS(Data!$D:$D,Data!$A:$A,$B49,Data!$C:$C,I$44,Data!$B:$B,$B$42) -> 80.78567469 | J49: =SUMIFS(Data!$D:$D,Data!$A:$A,$B49,Data!$C:$C,J$44,Data!$B:$B,$B$42) -> 95.25224388 | K49: =SUMIFS(Data!$D:$D,Data!$A:$A,$B49,Data!$C:$C,K$44,Data!$B:$B,$B$42) -> 72.53119631 | L49: =SUMIFS(Data!$D:$D,Data!$A:$A,$B49,Data!$C:$C,L$44,Data!$B:$B,$B$42) -> 18.88733499 | M49: =SUMIFS(Data!$D:$D,Data!$A:$A,$B49,Data!$C:$C,M$44,Data!$B:$B,$B$42) -> 25.22497948
B50: Multinet Gas | C50: =SUMIFS(Data!$D:$D,Data!$A:$A,$B50,Data!$C:$C,C$44,Data!$B:$B,$B$42) -> 73.20179069 | D50: =SUMIFS(Data!$D:$D,Data!$A:$A,$B50,Data!$C:$C,D$44,Data!$B:$B,$B$42) -> 75.84135441 | E50: =SUMIFS(Data!$D:$D,Data!$A:$A,$B50,Data!$C:$C,E$44,Data!$B:$B,$B$42) -> 77.51889238 | F50: =SUMIFS(Data!$D:$D,Data!$A:$A,$B50,Data!$C:$C,F$44,Data!$B:$B,$B$42) -> 83.8156914 | G50: =SUMIFS(Data!$D:$D,Data!$A:$A,$B50,Data!$C:$C,G$44,Data!$B:$B,$B$42) -> 107.946799 | H50: =SUMIFS(Data!$D:$D,Data!$A:$A,$B50,Data!$C:$C,H$44,Data!$B:$B,$B$42) -> 115.562126 | I50: =SUMIFS(Data!$D:$D,Data!$A:$A,$B50,Data!$C:$C,I$44,Data!$B:$B,$B$42) -> 116.3518804 | J50: =SUMIFS(Data!$D:$D,Data!$A:$A,$B50,Data!$C:$C,J$44,Data!$B:$B,$B$42) -> 115.6112959 | K50: =SUMIFS(Data!$D:$D,Data!$A:$A,$B50,Data!$C:$C,K$44,Data!$B:$B,$B$42) -> 106.6575992 | L50: =SUMIFS(Data!$D:$D,Data!$A:$A,$B50,Data!$C:$C,L$44,Data!$B:$B,$B$42) -> 112.5724629 | M50: =SUMIFS(Data!$D:$D,Data!$A:$A,$B50,Data!$C:$C,M$44,Data!$B:$B,$B$42) -> 97.77266683

Sheet Data
A1: Trading Name | C1: Year | D1: Value
A2: AGN South Australia | B2: Allowed nominal rate of return | C2: 2014 | D2: 0.1113003293
A3: AGN South Australia | B3: Allowed nominal rate of return | C3: 2015 | D3: 0.1113003293
A4: AGN South Australia | B4: Allowed nominal rate of return | C4: 2016 | D4: 0.1113003293
A5: AGN South Australia | B5: Allowed nominal rate of return | C5: 2017 | D5: 0.06446701969
A6: AGN South Australia | B6: Allowed nominal rate of return | C6: 2018 | D6: 0.06422545124
A7: AGN South Australia | B7: Allowed nominal rate of return | C7: 2019 | D7: 0.06365302193
A8: AGN South Australia | B8: Allowed nominal rate of return | C8: 2020 | D8: 0.06294826169
A9: AGN South Australia | B9: Allowed nominal rate of return | C9: 2021 | D9: 0.06128133752
A10: AGN South Australia | B10: Allowed nominal rate of return | C10: 2022 | D10: 0.05142632524
A11: AGN South Australia | B11: Allowed nominal rate of return | C11: 2023 | D11: 0.05060483619
A12: AGN South Australia | B12: Allowed nominal rate of return | C12: 2024 | D12: 0.05116661212
A13: AGN South Australia | B13: allowed nominal return on equity | C13: 2014 | D13: 0.1036
A14: AGN South Australia | B14: allowed nominal return on equity | C14: 2015 | D14: 0.1036
A15: AGN South Australia | B15: allowed nominal return on equity | C15: 2016 | D15: 0.1036
A16: AGN South Australia | B16: allowed nominal return on equity | C16: 2017 | D16: 0.071
A17: AGN South Australia | B17: allowed nominal return on equity | C17: 2018 | D17: 0.071
A18: AGN South Australia | B18: allowed nominal return on equity | C18: 2019 | D18: 0.071
A19: AGN South Australia | B19: allowed nominal return on equity | C19: 2020 | D19: 0.071
A20: AGN South Australia | B20: allowed nominal return on equity | C20: 2021 | D20: 0.071
A21: AGN South Australia | B21: allowed nominal return on equity | C21: 2022 | D21: 0.05369812712
A22: AGN South Australia | B22: allowed nominal return on equity | C22: 2023 | D22: 0.05369812712
A23: AGN South Australia | B23: allowed nominal return on equity | C23: 2024 | D23: 0.05369812712
A24: AGN South Australia | B24: Allowed real rate of return | C24: 2014 | D24: 0.08366682525
A25: AGN South Australia | B25: Allowed real rate of return | C25: 2015 | D25: 0.08366682525
A26: AGN South Australia | B26: Allowed real rate of return | C26: 2016 | D26: 0.08366682525
A27: AGN South Australia | B27: Allowed real rate of return | C27: 2017 | D27: 0.0396111516
A28: AGN South Australia | B28: Allowed real rate of return | C28: 2018 | D28: 0.0393752239
A29: AGN South Australia | B29: Allowed real rate of return | C29: 2019 | D29: 0.03881616112
A30: AGN South Australia | B30: Allowed real rate of return | C30: 2020 | D30: 0.03812785741
A31: AGN South Australia | B31: Allowed real rate of return | C31: 2021 | D31: 0.03649985679
A32: AGN South Australia | B32: Allowed real rate of return | C32: 2022 | D32: 0.03081631525
A33: AGN South Australia | B33: Allowed real rate of return | C33: 2023 | D33: 0.030010929
A34: AGN South Australia | B34: Allowed real rate of return | C34: 2024 | D34: 0.03056169302
A35: AGN South Australia | B35: allowed real return on equity | C35: 2014 | D35: 0.07615797172
A36: AGN South Australia | B36: allowed real return on equity | C36: 2015 | D36: 0.07615797172
A37: AGN South Australia | B37: allowed real return on equity | C37: 2016 | D37: 0.07615797172
A38: AGN South Australia | B38: allowed real return on equity | C38: 2017 | D38: 0.04599158336
A39: AGN South Australia | B39: allowed real return on equity | C39: 2018 | D39: 0.04599158336
A40: AGN South Australia | B40: allowed real return on equity | C40: 2019 | D40: 0.04599158336
A41: AGN South Australia | B41: allowed real return on equity | C41: 2020 | D41: 0.04599158336
A42: AGN South Australia | B42: allowed real return on equity | C42: 2021 | D42: 0.04599158336
A43: AGN South Australia | B43: allowed real return on equity | C43: 2022 | D43: 0.03304358539
A44: AGN South Australia | B44: allowed real return on equity | C44: 2023 | D44: 0.03304358539
A45: AGN South Australia | B45: allowed real return on equity | C45: 2024 | D45: 0.03304358539
A46: AGN South Australia | B46: CESS | C46: 2024 | D46: 0
A47: AGN South Australia | B47: Customer numbers at the end of the period | C47: 2014 | D47: 423432
A48: AGN South Australia | B48: Customer numbers at the end of the period | C48: 2015 | D48: 430217
A49: AGN South Australia | B49: Customer numbers at the end of the period | C49: 2016 | D49: 435909
A50: AGN South Australia | B50: Customer numbers at the end of the period | C50: 2017 | D50: 441894
A51: AGN South Australia | B51: Customer numbers at the end of the period | C51: 2018 | D51: 448211
A52: AGN South Australia | B52: Customer numbers at the end of the period | C52: 2019 | D52: 454391
A53: AGN South Australia | B53: Customer numbers at the end of the period | C53: 2020 | D53: 461048
A54: AGN South Australia | B54: Customer numbers at the end of the period | C54: 2021 | D54: 466417
A55: AGN South Australia | B55: Customer numbers at the end of the period | C55: 2022 | D55: 471641
A56: AGN South Australia | B56: Customer numbers at the end of the period | C56: 2023 | D56: 476885
A57: AGN South Australia | B57: Customer numbers at the end of the period | C57: 2024 | D57: 483336
A58: AGN South Australia | B58: Customer numbers at the start of the period | C58: 2014 | D58: 417192
A59: AGN South Australia | B59: Customer numbers at the start of the period | C59: 2015 | D59: 423432
A60: AGN South Australia | B60: Customer numbers at the start of the period | C60: 2016 | D60: 430217
A61: AGN South Australia | B61: Customer numbers at the start of the period | C61: 2017 | D61: 435909
A62: AGN South Australia | B62: Customer numbers at the start of the period | C62: 2018 | D62: 441894
A63: AGN South Australia | B63: Customer numbers at the start of the period | C63: 2019 | D63: 448211
A64: AGN South Australia | B64: Customer numbers at the start of the period | C64: 2020 | D64: 454391
A65: AGN South Australia | B65: Customer numbers at the start of the period | C65: 2021 | D65: 461048
A66: AGN South Australia | B66: Customer numbers at the start of the period | C66: 2022 | D66: 466417
A67: AGN South Australia | B67: Customer numbers at the start of the period | C67: 2023 | D67: 471641
A68: AGN South Australia | B68: Customer numbers at the start of the period | C68: 2024 | D68: 476885
A69: AGN South Australia | B69: EBIT per customer - Excluding returns from capital base indexation | C69: 2014 | D69: 296.9179623
A70: AGN South Australia | B70: EBIT per customer - Excluding returns from capital base indexation | C70: 2015 | D70: 301.9905654
A71: AGN South Australia | B71: EBIT per customer - Excluding returns from capital base indexation | C71: 2016 | D71: 307.70859
A72: AGN South Australia | B72: EBIT per customer - Excluding returns from capital base indexation | C72: 2017 | D72: 214.6477568
A73: AGN South Australia | B73: EBIT per customer - Excluding returns from capital base indexation | C73: 2018 | D73: 203.3403707
A74: AGN South Australia | B74: EBIT per customer - Excluding returns from capital base indexation | C74: 2019 | D74: 217.5166899
A75: AGN South Australia | B75: EBIT per customer - Excluding returns from capital base indexation | C75: 2020 | D75: 237.4349004
A76: AGN South Australia | B76: EBIT per customer - Excluding returns from capital base indexation | C76: 2021 | D76: 251.7822572
A77: AGN South Australia | B77: EBIT per customer - Excluding returns from capital base indexation | C77: 2022 | D77: 169.2724754
A78: AGN South Australia | B78: EBIT per customer - Excluding returns from capital base indexation | C78: 2023 | D78: 178.6800155
A79: AGN South Australia | B79: EBIT per customer - Excluding returns from capital base indexation | C79: 2024 | D79: 177.1305789
A80: AGN South Australia | B80: EBIT per customer - Including returns from capital base indexation | C80: 2014 | D80: 376.3780621
A81: AGN South Australia | B81: EBIT per customer - Including returns from capital base indexation | C81: 2015 | D81: 340.2933892
A82: AGN South Australia | B82: EBIT per customer - Including returns from capital base indexation | C82: 2016 | D82: 347.1695523
A83: AGN South Australia | B83: EBIT per customer - Including returns from capital base indexation | C83: 2017 | D83: 261.2459384
A84: AGN South Australia | B84: EBIT per customer - Including returns from capital base indexation | C84: 2018 | D84: 265.7164231
A85: AGN South Australia | B85: EBIT per customer - Including returns from capital base indexation | C85: 2019 | D85: 278.1893612
A86: AGN South Australia | B86: EBIT per customer - Including returns from capital base indexation | C86: 2020 | D86: 302.3343236
A87: AGN South Australia | B87: EBIT per customer - Including returns from capital base indexation | C87: 2021 | D87: 282.9979876
A88: AGN South Australia | B88: EBIT per customer - Including returns from capital base indexation | C88: 2022 | D88: 296.2170926
A89: AGN South Australia | B89: EBIT per customer - Including returns from capital base indexation | C89: 2023 | D89: 471.5468601
A90: AGN South Australia | B90: EBIT per customer - Including returns from capital base indexation | C90: 2024 | D90: 337.6334573
A91: AGN South Australia | B91: EBSS | C91: 2014 | D91: 1100898.93
A92: AGN South Australia | B92: EBSS | C92: 2015 | D92: -287511.93
A93: AGN South Australia | B93: EBSS | C93: 2016 | D93: 0
A94: AGN South Australia | B94: EBSS | C94: 2017 | D94: 5538825.14
A95: AGN South Australia | B95: EBSS | C95: 2018 | D95: -2798603.48
A96: AGN South Australia | B96: EBSS | C96: 2019 | D96: -3710909.21
A97: AGN South Australia | B97: EBSS | C97: 2020 | D97: 288652.9688
A98: AGN South Australia | B98: EBSS | C98: 2021 | D98: 0
A99: AGN South Australia | B99: EBSS | C99: 2022 | D99: 0
A100: AGN South Australia | B100: EBSS | C100: 2023 | D100: 0
A101: AGN South Australia | B101: EBSS | C101: 2024 | D101: 0
A102: AGN South Australia | B102: Efficiency carryover | C102: 2014 | D102: 0
A103: AGN South Australia | B103: Efficiency carryover | C103: 2015 | D103: 0
A104: AGN South Australia | B104: Efficiency carryover | C104: 2016 | D104: 0
A105: AGN South Australia | B105: Efficiency carryover | C105: 2017 | D105: 0
A106: AGN South Australia | B106: Efficiency carryover | C106: 2018 | D106: 0
A107: AGN South Australia | B107: Efficiency carryover | C107: 2019 | D107: 0
A108: AGN South Australia | B108: Efficiency carryover | C108: 2020 | D108: 0
A109: AGN South Australia | B109: Efficiency carryover | C109: 2021 | D109: 0
A110: AGN South Australia | B110: Efficiency carryover | C110: 2022 | D110: 4700521.296
A111: AGN South Australia | B111: Efficiency carryover | C111: 2023 | D111: 857733.1572
A112: AGN South Australia | B112: Efficiency carryover | C112: 2024 | D112: 4651071.728
A113: AGN South Australia | B113: forecast inflation | C113: 2014 | D113: 0.0255
A114: AGN South Australia | B114: forecast inflation | C114: 2015 | D114: 0.0255
A115: AGN South Australia | B115: forecast inflation | C115: 2016 | D115: 0.0255
A116: AGN South Australia | B116: forecast inflation | C116: 2017 | D116: 0.02390881249
A117: AGN South Australia | B117: forecast inflation | C117: 2018 | D117: 0.02390881249
A118: AGN South Australia | B118: forecast inflation | C118: 2019 | D118: 0.02390881249
A119: AGN South Australia | B119: forecast inflation | C119: 2020 | D119: 0.02390881249
A120: AGN South Australia | B120: forecast inflation | C120: 2021 | D120: 0.02390881249
A121: AGN South Australia | B121: forecast inflation | C121: 2022 | D121: 0.0199938725
A122: AGN South Australia | B122: Forecast inflation | C122: 2023 | D122: 0.0199938725
A123: AGN South Australia | B123: forecast inflation | C123: 2024 | D123: 0.0199938725
A124: AGN South Australia | B124: Forecast Opening RAB | C124: 2014 | D124: 1215808678
A125: AGN South Australia | B125: Forecast Opening RAB | C125: 2015 | D125: 1313852113
A126: AGN South Australia | B126: Forecast Opening RAB | C126: 2016 | D126: 1394606507
A127: AGN South Australia | B127: Forecast Opening RAB | C127: 2017 | D127: 1470355920
A128: AGN South Australia | B128: Forecast Opening RAB | C128: 2018 | D128: 1478041170
A129: AGN South Australia | B129: Forecast Opening RAB | C129: 2019 | D129: 1571956943
A130: AGN South Australia | B130: Forecast Opening RAB | C130: 2020 | D130: 1666097064
A131: AGN South Australia | B131: Forecast Opening RAB | C131: 2021 | D131: 1762292935
A132: AGN South Australia | B132: Forecast Opening RAB | C132: 2022 | D132: 1826855832
A133: AGN South Australia | B133: Forecast Opening RAB | C133: 2023 | D133: 1781785852
A134: AGN South Australia | B134: Forecast Opening RAB | C134: 2024 | D134: 1941658746
A135: AGN South Australia | B135: Forecast operating and maintenance expenditure | C135: 2014 | D135: 72270760.8
A136: AGN South Australia | B136: Forecast operating and maintenance expenditure | C136: 2015 | D136: 71629126.53
A137: AGN South Australia | B137: Forecast operating and maintenance expenditure | C137: 2016 | D137: 69954849.58
A138: AGN South Australia | B138: Forecast operating and maintenance expenditure | C138: 2017 | D138: 72486943.21
A139: AGN South Australia | B139: Forecast operating and maintenance expenditure | C139: 2018 | D139: 75335408.36
A140: AGN South Australia | B140: Forecast operating and maintenance expenditure | C140: 2019 | D140: 78198590.02
A141: AGN South Australia | B141: Forecast operating and maintenance expenditure | C141: 2020 | D141: 79731491.2
A142: AGN South Australia | B142: Forecast operating and maintenance expenditure | C142: 2021 | D142: 80635980.8
A143: AGN South Australia | B143: Forecast operating and maintenance expenditure | C143: 2022 | D143: 74992511.32
A144: AGN South Australia | B144: Forecast operating and maintenance expenditure | C144: 2023 | D144: 78485778.08
A145: AGN South Australia | B145: Forecast operating and maintenance expenditure | C145: 2024 | D145: 83708154.05
A146: AGN South Australia | B146: Indexation | C146: 2014 | D146: 33398004.99
A147: AGN South Australia | B147: Indexation | C147: 2015 | D147: 16348623.56
A148: AGN South Australia | B148: Indexation | C148: 2016 | D148: 17089101.3
A149: AGN South Australia | B149: Indexation | C149: 2017 | D149: 20452077.77
A150: AGN South Australia | B150: Indexation | C150: 2018 | D150: 27760631.32
A151: AGN South Australia | B151: Indexation | C151: 2019 | D151: 27381657.49
A152: AGN South Australia | B152: Indexation | C152: 2020 | D152: 29705744.4
A153: AGN South Australia | B153: Indexation | C153: 2021 | D153: 14475667.92
A154: AGN South Australia | B154: Indexation | C154: 2022 | D154: 59540766.7
A155: AGN South Australia | B155: Inflation rate | C155: 2014 | D155: 0.0292969
A156: AGN South Australia | B156: Inflation rate | C156: 2015 | D156: 0.0132827
A157: AGN South Australia | B157: Inflation rate | C157: 2016 | D157: 0.0131086
A158: AGN South Australia | B158: Inflation rate | C158: 2017 | D158: 0.0147601
A159: AGN South Australia | B159: Inflation rate | C159: 2018 | D159: 0.0190909
A160: AGN South Australia | B160: Inflation rate | C160: 2019 | D160: 0.0178412
A161: AGN South Australia | B161: Inflation rate | C161: 2020 | D161: 0.0184049
A162: AGN South Australia | B162: Inflation rate | C162: 2021 | D162: 0.0086059
A163: AGN South Australia | B163: Inflation rate | C163: 2022 | D163: 0.0349829
A164: AGN South Australia | B164: Inflation Rate | C164: 2023 | D164: 0.07831821929
A165: AGN South Australia | B165: Inflation rate | C165: 2024 | D165: 0.04051987768
A166: AGN South Australia | B166: Jurisdictional charges | C166: 2014 | D166: 2390100
A167: AGN South Australia | B167: Jurisdictional charges | C167: 2015 | D167: 2390100
A168: AGN South Australia | B168: Jurisdictional charges | C168: 2016 | D168: 2390100
A169: AGN South Australia | B169: Jurisdictional charges | C169: 2017 | D169: 2390100
A170: AGN South Australia | B170: Jurisdictional charges | C170: 2018 | D170: 2390100
A171: AGN South Australia | B171: Jurisdictional charges | C171: 2019 | D171: 2390100
A172: AGN South Australia | B172: Jurisdictional charges | C172: 2020 | D172: 2390100
A173: AGN South Australia | B173: Jurisdictional charges | C173: 2021 | D173: 2390100
A174: AGN South Australia | B174: Jurisdictional charges | C174: 2022 | D174: 2390100
A175: AGN South Australia | B175: Jurisdictional charges | C175: 2023 | D175: 2390100
A176: AGN South Australia | B176: Jurisdictional charges | C176: 2024 | D176: 2390100
A177: AGN South Australia | B177: Nominal return on assets | C177: 2014 | D177: 0.1387704077
A178: AGN South Australia | B178: Nominal return on assets | C178: 2015 | D178: 0.1180073569
A179: AGN South Australia | B179: Nominal return on assets | C179: 2016 | D179: 0.115326807
A180: AGN South Australia | B180: Nominal return on assets | C180: 2017 | D180: 0.08275035721
A181: AGN South Australia | B181: Nominal return on assets | C181: 2018 | D181: 0.08132553217
A182: AGN South Australia | B182: Nominal return on assets | C182: 2019 | D182: 0.08180342031
A183: AGN South Australia | B183: Nominal return on assets | C183: 2020 | D183: 0.08573932893
A184: AGN South Australia | B184: Nominal return on assets | C184: 2021 | D184: 0.0780200351
A185: AGN South Australia | B185: Nominal return on assets | C185: 2022 | D185: 0.08163034523
A186: AGN South Australia | B186: Nominal return on assets | C186: 2023 | D186: 0.1268571187
A187: AGN South Australia | B187: Nominal return on assets | C187: 2024 | D187: 0.08523751426
A188: AGN South Australia | B188: Nominal return on regulated equity | C188: 2014 | D188: 0.3353070903
A189: AGN South Australia | B189: Nominal return on regulated equity | C189: 2015 | D189: 0.2399221066
A190: AGN South Australia | B190: Nominal return on regulated equity | C190: 2016 | D190: 0.1339879407
A191: AGN South Australia | B191: Nominal return on regulated equity | C191: 2017 | D191: 0.09864642836
A192: AGN South Australia | B192: Nominal return on regulated equity | C192: 2018 | D192: 0.0998914457
A193: AGN South Australia | B193: Nominal return on regulated equity | C193: 2019 | D193: 0.1057802559
A194: AGN South Australia | B194: Nominal return on regulated equity | C194: 2020 | D194: 0.1122091144
A195: AGN South Australia | B195: Nominal return on regulated equity | C195: 2021 | D195: 0.09353074943
A196: AGN South Australia | B196: Nominal return on regulated equity | C196: 2022 | D196: 0.1247270509
A197: AGN South Australia | B197: Nominal return on regulated equity | C197: 2023 | D197: 0.2166203436
A198: AGN South Australia | B198: Nominal return on regulated equity | C198: 2024 | D198: 0.1240402639
A199: AGN South Australia | B199: Nominal straight line depreciation | C199: 2014 | D199: 45418939.48
A200: AGN South Australia | B200: Nominal straight line depreciation | C200: 2015 | D200: 49937690.38
... 1873 more rows

Sheet Detailed
B2: Gas DNSP Profitability Reporting - Detailed calculations
B4: Network Service Provider | C4: AusNet Services
B6: Returns from indexation of the RAB | C6: Exclusive
B8: Returns from incentive scheme payments | C8: Inclusive
B10: Impact of inflation on returns | C10: Inclusive
B12: Summary
B14: Returns on assets | C14: 2014 | D14: 2015 | E14: 2016 | F14: 2017 | G14: 2018 | H14: 2019 | I14: 2020 | J14: 2021 | K14: 2022 | L14: 2023 | M14: 2024
B15: Return on Assets | C15: =IF($C$6="Inclusive",C71/C94,C71/C95) -> 0.04622892682 | D15: =IF($C$6="Inclusive", D71/D94, D71/D95) -> 0.04946315567 | E15: 0.05663452614 | F15: 0.05634668263 | G15: 0.03643912973 | H15: 0.04547413366 | I15: 0.04664537533 | J15: 0.04559998519 | K15: =IF($C$6="Inclusive", K71/K94, K71/K95) -> 0.03585558285 | L15: =IF($C$6="Inclusive", L71/L94, L71/L95) -> 0.03710685626 | M15: 0.0348055898
B16: Allowed rate of return | C16: =IF($C$6="Exclusive",SUMIFS(Data!$D:$D,Data!$A:$A,Detailed!$C$4,Data!$B:$B,"Allowed real rate of return",Data!$C:$C,Detailed!C$14),SUMIFS(Data!$D:$D,Data!$A:$A,Detailed!$C$4,Data!$B:$B,"Allowed nominal rate of return",Data!$C:$C,Detailed!C$14)) -> 0.05148494356 | D16: =IF($C$6="Exclusive",SUMIFS(Data!$D:$D,Data!$A:$A,Detailed!$C$4,Data!$B:$B,"Allowed real rate of return",Data!$C:$C,Detailed!D$14),SUMIFS(Data!$D:$D,Data!$A:$A,Detailed!$C$4,Data!$B:$B,"Allowed nominal rate of return",Data!$C:$C,Detailed!D$14)) -> 0.05148494356 | E16: =IF($C$6="Exclusive",SUMIFS(Data!$D:$D,Data!$A:$A,Detailed!$C$4,Data!$B:$B,"Allowed real rate of return",Data!$C:$C,Detailed!E$14),SUMIFS(Data!$D:$D,Data!$A:$A,Detailed!$C$4,Data!$B:$B,"Allowed nominal rate of return",Data!$C:$C,Detailed!E$14)) -> 0.05148494356 | F16: =IF($C$6="Exclusive",SUMIFS(Data!$D:$D,Data!$A:$A,Detailed!$C$4,Data!$B:$B,"Allowed real rate of return",Data!$C:$C,Detailed!F$14),SUMIFS(Data!$D:$D,Data!$A:$A,Detailed!$C$4,Data!$B:$B,"Allowed nominal rate of return",Data!$C:$C,Detailed!F$14)) -> 0.05148494356 | G16: =IF($C$6="Exclusive",SUMIFS(Data!$D:$D,Data!$A:$A,Detailed!$C$4,Data!$B:$B,"Allowed real rate of return",Data!$C:$C,Detailed!G$14),SUMIFS(Data!$D:$D,Data!$A:$A,Detailed!$C$4,Data!$B:$B,"Allowed nominal rate of return",Data!$C:$C,Detailed!G$14)) -> 0.04082545094 | H16: =IF($C$6="Exclusive",SUMIFS(Data!$D:$D,Data!$A:$A,Detailed!$C$4,Data!$B:$B,"Allowed real rate of return",Data!$C:$C,Detailed!H$14),SUMIFS(Data!$D:$D,Data!$A:$A,Detailed!$C$4,Data!$B:$B,"Allowed nominal rate of return",Data!$C:$C,Detailed!H$14)) -> 0.04054502908 | I16: =IF($C$6="Exclusive",SUMIFS(Data!$D:$D,Data!$A:$A,Detailed!$C$4,Data!$B:$B,"Allowed real rate of return",Data!$C:$C,Detailed!I$14),SUMIFS(Data!$D:$D,Data!$A:$A,Detailed!$C$4,Data!$B:$B,"Allowed nominal rate of return",Data!$C:$C,Detailed!I$14)) -> 0.03963850526 | J16: =IF($C$6="Exclusive",SUMIFS(Data!$D:$D,Data!$A:$A,Detailed!$C$4,Data!$B:$B,"Allowed real rate of return",Data!$C:$C,Detailed!J$14),SUMIFS(Data!$D:$D,Data!$A:$A,Detailed!$C$4,Data!$B:$B,"Allowed nominal rate of return",Data!$C:$C,Detailed!J$14)) -> 0.03830075603 | K16: =IF($C$6="Exclusive",SUMIFS(Data!$D:$D,Data!$A:$A,Detailed!$C$4,Data!$B:$B,"Allowed real rate of return",Data!$C:$C,Detailed!K$14),SUMIFS(Data!$D:$D,Data!$A:$A,Detailed!$C$4,Data!$B:$B,"Allowed nominal rate of return",Data!$C:$C,Detailed!K$14)) -> 0.03671699574 | L16: =IF($C$6="Exclusive",SUMIFS(Data!$D:$D,Data!$A:$A,Detailed!$C$4,Data!$B:$B,"Allowed real rate of return",Data!$C:$C,Detailed!L$14),SUMIFS(Data!$D:$D,Data!$A:$A,Detailed!$C$4,Data!$B:$B,"Allowed nominal rate of return",Data!$C:$C,Detailed!L$14)) -> -0.002453557921 | M16: =IF($C$6="Exclusive",SUMIFS(Data!$D:$D,Data!$A:$A,Detailed!$C$4,Data!$B:$B,"Allowed real rate of return",Data!$C:$C,Detailed!M$14),SUMIFS(Data!$D:$D,Data!$A:$A,Detailed!$C$4,Data!$B:$B,"Allowed nominal rate of return",Data!$C:$C,Detailed!M$14)) -> 0.02984001067
B17: Difference | C17: =C15-C16 -> -0.005256016744 | D17: =D15-D16 -> -0.002021787891 | E17: 0.005149582574 | F17: 0.004861739069 | G17: -0.004386321211 | H17: =H15-H16 -> 0.004929104585 | I17: 0.007006870067 | J17: 0.00729922916 | K17: =K15-K16 -> -0.0008614128881 | L17: 0.03956041418 | M17: 0.00496557913
B19: Source: Post Tax Revenue Model - Pre-tax real WACC - 2014 to 2024
B22: Return on regulated equity | C22: 2014 | D22: 2015 | E22: 2016 | F22: 2017 | G22: 2018 | H22: 2019 | I22: 2020 | J22: 2021 | K22: 2022 | L22: 2023 | M22: 2024
B23: Return on regulated equity | C23: =IF(AND($C$6="Inclusive",$C$8="Inclusive",$C$10="Inclusive"),SUMIFS(Data!$D:$D,Data!$A:$A,$C$4,Data!$B:$B,Inputs!$E$11,Data!$C:$C,C$22),IF(AND($C$6="Exclusive",$C$8="Inclusive",$C$10="Inclusive"),SUMIFS(Data!$D:$D,Data!$A:$A,$C$4,Data!$B:$B,Inputs!$E$12,Data!$C:$C,C$22),IF(AND($C$6="Inclusive",$C$8="Exclusive",$C$10="Inclusive"),SUMIFS(Data!$D:$D,Data!$A:$A,$C$4,Data!$B:$B,Inputs!$E$13,Data!$C:$C,C$22),IF(AND($C$6="Exclusive",$C$8="Exclusive",$C$10="Inclusive"),SUMIFS(Data!$D:$D,Data!$A:$A,$C$4,Data!$B:$B,Inputs!$E$14,Data!$C:$C,C$22),IF(AND($C$6="Inclusive",$C$8="Inclusive",$C$10="Exclusive"),SUMIFS(Data!$D:$D,Data!$A:$A,$C$4,Data!$B:$B,Inputs!$E$15,Data!$C:$C,C$22),IF(AND($C$6="Exclusive",$C$8="Inclusive",$C$10="Exclusive"),SUMIFS(Data!$D:$D,Data!$A:$A,$C$4,Data!$B:$B,Inputs!$E$16,Data!$C:$C,C$22),IF(AND($C$6="Inclusive",$C$8="Exclusive",$C$10="Exclusive"),SUMIFS(Data!$D:$D,Data!$A:$A,$C$4,Data!$B:$B,Inputs!$E$17,Data!$C:$C,C$22),IF(AND($C$6="Exclusive",$C$8="Exclusive",$C$10="Exclusive"),SUMIFS(Data!$D:$D,Data!$A:$A,$C$4,Data!$B:$B,Inputs!$E$18,Data!$C:$C,C$22))))))))) -> 0.0548121395 | D23: =IF(AND($C$6="Inclusive",$C$8="Inclusive",$C$10="Inclusive"),SUMIFS(Data!$D:$D,Data!$A:$A,$C$4,Data!$B:$B,Inputs!$E$11,Data!$C:$C,D$22),IF(AND($C$6="Exclusive",$C$8="Inclusive",$C$10="Inclusive"),SUMIFS(Data!$D:$D,Data!$A:$A,$C$4,Data!$B:$B,Inputs!$E$12,Data!$C:$C,D$22),IF(AND($C$6="Inclusive",$C$8="Exclusive",$C$10="Inclusive"),SUMIFS(Data!$D:$D,Data!$A:$A,$C$4,Data!$B:$B,Inputs!$E$13,Data!$C:$C,D$22),IF(AND($C$6="Exclusive",$C$8="Exclusive",$C$10="Inclusive"),SUMIFS(Data!$D:$D,Data!$A:$A,$C$4,Data!$B:$B,Inputs!$E$14,Data!$C:$C,D$22),IF(AND($C$6="Inclusive",$C$8="Inclusive",$C$10="Exclusive"),SUMIFS(Data!$D:$D,Data!$A:$A,$C$4,Data!$B:$B,Inputs!$E$15,Data!$C:$C,D$22),IF(AND($C$6="Exclusive",$C$8="Inclusive",$C$10="Exclusive"),SUMIFS(Data!$D:$D,Data!$A:$A,$C$4,Data!$B:$B,Inputs!$E$16,Data!$C:$C,D$22),IF(AND($C$6="Inclusive",$C$8="Exclusive",$C$10="Exclusive"),SUMIFS(Data!$D:$D,Data!$A:$A,$C$4,Data!$B:$B,Inputs!$E$17,Data!$C:$C,D$22),IF(AND($C$6="Exclusive",$C$8="Exclusive",$C$10="Exclusive"),SUMIFS(Data!$D:$D,Data!$A:$A,$C$4,Data!$B:$B,Inputs!$E$18,Data!$C:$C,D$22))))))))) -> 0.06586103135 | E23: =IF(AND($C$6="Inclusive",$C$8="Inclusive",$C$10="Inclusive"),SUMIFS(Data!$D:$D,Data!$A:$A,$C$4,Data!$B:$B,Inputs!$E$11,Data!$C:$C,E$22),IF(AND($C$6="Exclusive",$C$8="Inclusive",$C$10="Inclusive"),SUMIFS(Data!$D:$D,Data!$A:$A,$C$4,Data!$B:$B,Inputs!$E$12,Data!$C:$C,E$22),IF(AND($C$6="Inclusive",$C$8="Exclusive",$C$10="Inclusive"),SUMIFS(Data!$D:$D,Data!$A:$A,$C$4,Data!$B:$B,Inputs!$E$13,Data!$C:$C,E$22),IF(AND($C$6="Exclusive",$C$8="Exclusive",$C$10="Inclusive"),SUMIFS(Data!$D:$D,Data!$A:$A,$C$4,Data!$B:$B,Inputs!$E$14,Data!$C:$C,E$22),IF(AND($C$6="Inclusive",$C$8="Inclusive",$C$10="Exclusive"),SUMIFS(Data!$D:$D,Data!$A:$A,$C$4,Data!$B:$B,Inputs!$E$15,Data!$C:$C,E$22),IF(AND($C$6="Exclusive",$C$8="Inclusive",$C$10="Exclusive"),SUMIFS(Data!$D:$D,Data!$A:$A,$C$4,Data!$B:$B,Inputs!$E$16,Data!$C:$C,E$22),IF(AND($C$6="Inclusive",$C$8="Exclusive",$C$10="Exclusive"),SUMIFS(Data!$D:$D,Data!$A:$A,$C$4,Data!$B:$B,Inputs!$E$17,Data!$C:$C,E$22),IF(AND($C$6="Exclusive",$C$8="Exclusive",$C$10="Exclusive"),SUMIFS(Data!$D:$D,Data!$A:$A,$C$4,Data!$B:$B,Inputs!$E$18,Data!$C:$C,E$22))))))))) -> 0.07591943504 | F23: =IF(AND($C$6="Inclusive",$C$8="Inclusive",$C$10="Inclusive"),SUMIFS(Data!$D:$D,Data!$A:$A,$C$4,Data!$B:$B,Inputs!$E$11,Data!$C:$C,F$22),IF(AND($C$6="Exclusive",$C$8="Inclusive",$C$10="Inclusive"),SUMIFS(Data!$D:$D,Data!$A:$A,$C$4,Data!$B:$B,Inputs!$E$12,Data!$C:$C,F$22),IF(AND($C$6="Inclusive",$C$8="Exclusive",$C$10="Inclusive"),SUMIFS(Data!$D:$D,Data!$A:$A,$C$4,Data!$B:$B,Inputs!$E$13,Data!$C:$C,F$22),IF(AND($C$6="Exclusive",$C$8="Exclusive",$C$10="Inclusive"),SUMIFS(Data!$D:$D,Data!$A:$A,$C$4,Data!$B:$B,Inputs!$E$14,Data!$C:$C,F$22),IF(AND($C$6="Inclusive",$C$8="Inclusive",$C$10="Exclusive"),SUMIFS(Data!$D:$D,Data!$A:$A,$C$4,Data!$B:$B,Inputs!$E$15,Data!$C:$C,F$22),IF(AND($C$6="Exclusive",$C$8="Inclusive",$C$10="Exclusive"),SUMIFS(Data!$D:$D,Data!$A:$A,$C$4,Data!$B:$B,Inputs!$E$16,Data!$C:$C,F$22),IF(AND($C$6="Inclusive",$C$8="Exclusive",$C$10="Exclusive"),SUMIFS(Data!$D:$D,Data!$A:$A,$C$4,Data!$B:$B,Inputs!$E$17,Data!$C:$C,F$22),IF(AND($C$6="Exclusive",$C$8="Exclusive",$C$10="Exclusive"),SUMIFS(Data!$D:$D,Data!$A:$A,$C$4,Data!$B:$B,Inputs!$E$18,Data!$C:$C,F$22))))))))) -> 0.06227056629 | G23: =IF(AND($C$6="Inclusive",$C$8="Inclusive",$C$10="Inclusive"),SUMIFS(Data!$D:$D,Data!$A:$A,$C$4,Data!$B:$B,Inputs!$E$11,Data!$C:$C,G$22),IF(AND($C$6="Exclusive",$C$8="Inclusive",$C$10="Inclusive"),SUMIFS(Data!$D:$D,Data!$A:$A,$C$4,Data!$B:$B,Inputs!$E$12,Data!$C:$C,G$22),IF(AND($C$6="Inclusive",$C$8="Exclusive",$C$10="Inclusive"),SUMIFS(Data!$D:$D,Data!$A:$A,$C$4,Data!$B:$B,Inputs!$E$13,Data!$C:$C,G$22),IF(AND($C$6="Exclusive",$C$8="Exclusive",$C$10="Inclusive"),SUMIFS(Data!$D:$D,Data!$A:$A,$C$4,Data!$B:$B,Inputs!$E$14,Data!$C:$C,G$22),IF(AND($C$6="Inclusive",$C$8="Inclusive",$C$10="Exclusive"),SUMIFS(Data!$D:$D,Data!$A:$A,$C$4,Data!$B:$B,Inputs!$E$15,Data!$C:$C,G$22),IF(AND($C$6="Exclusive",$C$8="Inclusive",$C$10="Exclusive"),SUMIFS(Data!$D:$D,Data!$A:$A,$C$4,Data!$B:$B,Inputs!$E$16,Data!$C:$C,G$22),IF(AND($C$6="Inclusive",$C$8="Exclusive",$C$10="Exclusive"),SUMIFS(Data!$D:$D,Data!$A:$A,$C$4,Data!$B:$B,Inputs!$E$17,Data!$C:$C,G$22),IF(AND($C$6="Exclusive",$C$8="Exclusive",$C$10="Exclusive"),SUMIFS(Data!$D:$D,Data!$A:$A,$C$4,Data!$B:$B,Inputs!$E$18,Data!$C:$C,G$22))))))))) -> 0.03565897197 | H23: =IF(AND($C$6="Inclusive",$C$8="Inclusive",$C$10="Inclusive"),SUMIFS(Data!$D:$D,Data!$A:$A,$C$4,Data!$B:$B,Inputs!$E$11,Data!$C:$C,H$22),IF(AND($C$6="Exclusive",$C$8="Inclusive",$C$10="Inclusive"),SUMIFS(Data!$D:$D,Data!$A:$A,$C$4,Data!$B:$B,Inputs!$E$12,Data!$C:$C,H$22),IF(AND($C$6="Inclusive",$C$8="Exclusive",$C$10="Inclusive"),SUMIFS(Data!$D:$D,Data!$A:$A,$C$4,Data!$B:$B,Inputs!$E$13,Data!$C:$C,H$22),IF(AND($C$6="Exclusive",$C$8="Exclusive",$C$10="Inclusive"),SUMIFS(Data!$D:$D,Data!$A:$A,$C$4,Data!$B:$B,Inputs!$E$14,Data!$C:$C,H$22),IF(AND($C$6="Inclusive",$C$8="Inclusive",$C$10="Exclusive"),SUMIFS(Data!$D:$D,Data!$A:$A,$C$4,Data!$B:$B,Inputs!$E$15,Data!$C:$C,H$22),IF(AND($C$6="Exclusive",$C$8="Inclusive",$C$10="Exclusive"),SUMIFS(Data!$D:$D,Data!$A:$A,$C$4,Data!$B:$B,Inputs!$E$16,Data!$C:$C,H$22),IF(AND($C$6="Inclusive",$C$8="Exclusive",$C$10="Exclusive"),SUMIFS(Data!$D:$D,Data!$A:$A,$C$4,Data!$B:$B,Inputs!$E$17,Data!$C:$C,H$22),IF(AND($C$6="Exclusive",$C$8="Exclusive",$C$10="Exclusive"),SUMIFS(Data!$D:$D,Data!$A:$A,$C$4,Data!$B:$B,Inputs!$E$18,Data!$C:$C,H$22))))))))) -> 0.06560088447 | I23: =IF(AND($C$6="Inclusive",$C$8="Inclusive",$C$10="Inclusive"),SUMIFS(Data!$D:$D,Data!$A:$A,$C$4,Data!$B:$B,Inputs!$E$11,Data!$C:$C,I$22),IF(AND($C$6="Exclusive",$C$8="Inclusive",$C$10="Inclusive"),SUMIFS(Data!$D:$D,Data!$A:$A,$C$4,Data!$B:$B,Inputs!$E$12,Data!$C:$C,I$22),IF(AND($C$6="Inclusive",$C$8="Exclusive",$C$10="Inclusive"),SUMIFS(Data!$D:$D,Data!$A:$A,$C$4,Data!$B:$B,Inputs!$E$13,Data!$C:$C,I$22),IF(AND($C$6="Exclusive",$C$8="Exclusive",$C$10="Inclusive"),SUMIFS(Data!$D:$D,Data!$A:$A,$C$4,Data!$B:$B,Inputs!$E$14,Data!$C:$C,I$22),IF(AND($C$6="Inclusive",$C$8="Inclusive",$C$10="Exclusive"),SUMIFS(Data!$D:$D,Data!$A:$A,$C$4,Data!$B:$B,Inputs!$E$15,Data!$C:$C,I$22),IF(AND($C$6="Exclusive",$C$8="Inclusive",$C$10="Exclusive"),SUMIFS(Data!$D:$D,Data!$A:$A,$C$4,Data!$B:$B,Inputs!$E$16,Data!$C:$C,I$22),IF(AND($C$6="Inclusive",$C$8="Exclusive",$C$10="Exclusive"),SUMIFS(Data!$D:$D,Data!$A:$A,$C$4,Data!$B:$B,Inputs!$E$17,Data!$C:$C,I$22),IF(AND($C$6="Exclusive",$C$8="Exclusive",$C$10="Exclusive"),SUMIFS(Data!$D:$D,Data!$A:$A,$C$4,Data!$B:$B,Inputs!$E$18,Data!$C:$C,I$22))))))))) -> 0.06025114518 | J23: =IF(AND($C$6="Inclusive",$C$8="Inclusive",$C$10="Inclusive"),SUMIFS(Data!$D:$D,Data!$A:$A,$C$4,Data!$B:$B,Inputs!$E$11,Data!$C:$C,J$22),IF(AND($C$6="Exclusive",$C$8="Inclusive",$C$10="Inclusive"),SUMIFS(Data!$D:$D,Data!$A:$A,$C$4,Data!$B:$B,Inputs!$E$12,Data!$C:$C,J$22),IF(AND($C$6="Inclusive",$C$8="Exclusive",$C$10="Inclusive"),SUMIFS(Data!$D:$D,Data!$A:$A,$C$4,Data!$B:$B,Inputs!$E$13,Data!$C:$C,J$22),IF(AND($C$6="Exclusive",$C$8="Exclusive",$C$10="Inclusive"),SUMIFS(Data!$D:$D,Data!$A:$A,$C$4,Data!$B:$B,Inputs!$E$14,Data!$C:$C,J$22),IF(AND($C$6="Inclusive",$C$8="Inclusive",$C$10="Exclusive"),SUMIFS(Data!$D:$D,Data!$A:$A,$C$4,Data!$B:$B,Inputs!$E$15,Data!$C:$C,J$22),IF(AND($C$6="Exclusive",$C$8="Inclusive",$C$10="Exclusive"),SUMIFS(Data!$D:$D,Data!$A:$A,$C$4,Data!$B:$B,Inputs!$E$16,Data!$C:$C,J$22),IF(AND($C$6="Inclusive",$C$8="Exclusive",$C$10="Exclusive"),SUMIFS(Data!$D:$D,Data!$A:$A,$C$4,Data!$B:$B,Inputs!$E$17,Data!$C:$C,J$22),IF(AND($C$6="Exclusive",$C$8="Exclusive",$C$10="Exclusive"),SUMIFS(Data!$D:$D,Data!$A:$A,$C$4,Data!$B:$B,Inputs!$E$18,Data!$C:$C,J$22))))))))) -> 0.01532580816 | K23: =IF(AND($C$6="Inclusive",$C$8="Inclusive",$C$10="Inclusive"),SUMIFS(Data!$D:$D,Data!$A:$A,$C$4,Data!$B:$B,Inputs!$E$11,Data!$C:$C,K$22),IF(AND($C$6="Exclusive",$C$8="Inclusive",$C$10="Inclusive"),SUMIFS(Data!$D:$D,Data!$A:$A,$C$4,Data!$B:$B,Inputs!$E$12,Data!$C:$C,K$22),IF(AND($C$6="Inclusive",$C$8="Exclusive",$C$10="Inclusive"),SUMIFS(Data!$D:$D,Data!$A:$A,$C$4,Data!$B:$B,Inputs!$E$13,Data!$C:$C,K$22),IF(AND($C$6="Exclusive",$C$8="Exclusive",$C$10="Inclusive"),SUMIFS(Data!$D:$D,Data!$A:$A,$C$4,Data!$B:$B,Inputs!$E$14,Data!$C:$C,K$22),IF(AND($C$6="Inclusive",$C$8="Inclusive",$C$10="Exclusive"),SUMIFS(Data!$D:$D,Data!$A:$A,$C$4,Data!$B:$B,Inputs!$E$15,Data!$C:$C,K$22),IF(AND($C$6="Exclusive",$C$8="Inclusive",$C$10="Exclusive"),SUMIFS(Data!$D:$D,Data!$A:$A,$C$4,Data!$B:$B,Inputs!$E$16,Data!$C:$C,K$22),IF(AND($C$6="Inclusive",$C$8="Exclusive",$C$10="Exclusive"),SUMIFS(Data!$D:$D,Data!$A:$A,$C$4,Data!$B:$B,Inputs!$E$17,Data!$C:$C,K$22),IF(AND($C$6="Exclusive",$C$8="Exclusive",$C$10="Exclusive"),SUMIFS(Data!$D:$D,Data!$A:$A,$C$4,Data!$B:$B,Inputs!$E$18,Data!$C:$C,K$22))))))))) -> 0.07948732897 | L23: =IF(AND($C$6="Inclusive",$C$8="Inclusive",$C$10="Inclusive"),SUMIFS(Data!$D:$D,Data!$A:$A,$C$4,Data!$B:$B,Inputs!$E$11,Data!$C:$C,L$22),IF(AND($C$6="Exclusive",$C$8="Inclusive",$C$10="Inclusive"),SUMIFS(Data!$D:$D,Data!$A:$A,$C$4,Data!$B:$B,Inputs!$E$12,Data!$C:$C,L$22),IF(AND($C$6="Inclusive",$C$8="Exclusive",$C$10="Inclusive"),SUMIFS(Data!$D:$D,Data!$A:$A,$C$4,Data!$B:$B,Inputs!$E$13,Data!$C:$C,L$22),IF(AND($C$6="Exclusive",$C$8="Exclusive",$C$10="Inclusive"),SUMIFS(Data!$D:$D,Data!$A:$A,$C$4,Data!$B:$B,Inputs!$E$14,Data!$C:$C,L$22),IF(AND($C$6="Inclusive",$C$8="Inclusive",$C$10="Exclusive"),SUMIFS(Data!$D:$D,Data!$A:$A,$C$4,Data!$B:$B,Inputs!$E$15,Data!$C:$C,L$22),IF(AND($C$6="Exclusive",$C$8="Inclusive",$C$10="Exclusive"),SUMIFS(Data!$D:$D,Data!$A:$A,$C$4,Data!$B:$B,Inputs!$E$16,Data!$C:$C,L$22),IF(AND($C$6="Inclusive",$C$8="Exclusive",$C$10="Exclusive"),SUMIFS(Data!$D:$D,Data!$A:$A,$C$4,Data!$B:$B,Inputs!$E$17,Data!$C:$C,L$22),IF(AND($C$6="Exclusive",$C$8="Exclusive",$C$10="Exclusive"),SUMIFS(Data!$D:$D,Data!$A:$A,$C$4,Data!$B:$B,Inputs!$E$18,Data!$C:$C,L$22))))))))) -> 0.1325935631 | M23: =IF(AND($C$6="Inclusive",$C$8="Inclusive",$C$10="Inclusive"),SUMIFS(Data!$D:$D,Data!$A:$A,$C$4,Data!$B:$B,Inputs!$E$11,Data!$C:$C,M$22),IF(AND($C$6="Exclusive",$C$8="Inclusive",$C$10="Inclusive"),SUMIFS(Data!$D:$D,Data!$A:$A,$C$4,Data!$B:$B,Inputs!$E$12,Data!$C:$C,M$22),IF(AND($C$6="Inclusive",$C$8="Exclusive",$C$10="Inclusive"),SUMIFS(Data!$D:$D,Data!$A:$A,$C$4,Data!$B:$B,Inputs!$E$13,Data!$C:$C,M$22),IF(AND($C$6="Exclusive",$C$8="Exclusive",$C$10="Inclusive"),SUMIFS(Data!$D:$D,Data!$A:$A,$C$4,Data!$B:$B,Inputs!$E$14,Data!$C:$C,M$22),IF(AND($C$6="Inclusive",$C$8="Inclusive",$C$10="Exclusive"),SUMIFS(Data!$D:$D,Data!$A:$A,$C$4,Data!$B:$B,Inputs!$E$15,Data!$C:$C,M$22),IF(AND($C$6="Exclusive",$C$8="Inclusive",$C$10="Exclusive"),SUMIFS(Data!$D:$D,Data!$A:$A,$C$4,Data!$B:$B,Inputs!$E$16,Data!$C:$C,M$22),IF(AND($C$6="Inclusive",$C$8="Exclusive",$C$10="Exclusive"),SUMIFS(Data!$D:$D,Data!$A:$A,$C$4,Data!$B:$B,Inputs!$E$17,Data!$C:$C,M$22),IF(AND($C$6="Exclusive",$C$8="Exclusive",$C$10="Exclusive"),SUMIFS(Data!$D:$D,Data!$A:$A,$C$4,Data!$B:$B,Inputs!$E$18,Data!$C:$C,M$22))))))))) -> 0.1414151359
B24: Allowed return on equity | C24: =IF($C$6="Exclusive", SUMIFS(Data!$D:$D,Data!$A:$A,Detailed!$C$4,Data!$B:$B,"allowed real return on equity",Data!$C:$C,C$22), SUMIFS(Data!$D:$D,Data!$A:$A,$C$4,Data!$B:$B,"allowed nominal return on equity",Data!$C:$C,C$22)) -> 0.0531004878 | D24: =IF($C$6="Exclusive", SUMIFS(Data!$D:$D,Data!$A:$A,Detailed!$C$4,Data!$B:$B,"allowed real return on equity",Data!$C:$C,D$22), SUMIFS(Data!$D:$D,Data!$A:$A,$C$4,Data!$B:$B,"allowed nominal return on equity",Data!$C:$C,D$22)) -> 0.0531004878 | E24: =IF($C$6="Exclusive", SUMIFS(Data!$D:$D,Data!$A:$A,Detailed!$C$4,Data!$B:$B,"allowed real return on equity",Data!$C:$C,E$22), SUMIFS(Data!$D:$D,Data!$A:$A,$C$4,Data!$B:$B,"allowed nominal return on equity",Data!$C:$C,E$22)) -> 0.0531004878 | F24: =IF($C$6="Exclusive", SUMIFS(Data!$D:$D,Data!$A:$A,Detailed!$C$4,Data!$B:$B,"allowed real return on equity",Data!$C:$C,F$22), SUMIFS(Data!$D:$D,Data!$A:$A,$C$4,Data!$B:$B,"allowed nominal return on equity",Data!$C:$C,F$22)) -> 0.0531004878 | G24: =IF($C$6="Exclusive", SUMIFS(Data!$D:$D,Data!$A:$A,Detailed!$C$4,Data!$B:$B,"allowed real return on equity",Data!$C:$C,G$22), SUMIFS(Data!$D:$D,Data!$A:$A,$C$4,Data!$B:$B,"allowed nominal return on equity",Data!$C:$C,G$22)) -> 0.04734066535 | H24: =IF($C$6="Exclusive", SUMIFS(Data!$D:$D,Data!$A:$A,Detailed!$C$4,Data!$B:$B,"allowed real return on equity",Data!$C:$C,H$22), SUMIFS(Data!$D:$D,Data!$A:$A,$C$4,Data!$B:$B,"allowed nominal return on equity",Data!$C:$C,H$22)) -> 0.04734066535 | I24: =IF($C$6="Exclusive", SUMIFS(Data!$D:$D,Data!$A:$A,Detailed!$C$4,Data!$B:$B,"allowed real return on equity",Data!$C:$C,I$22), SUMIFS(Data!$D:$D,Data!$A:$A,$C$4,Data!$B:$B,"allowed nominal return on equity",Data!$C:$C,I$22)) -> 0.04734066535 | J24: =IF($C$6="Exclusive", SUMIFS(Data!$D:$D,Data!$A:$A,Detailed!$C$4,Data!$B:$B,"allowed real return on equity",Data!$C:$C,J$22), SUMIFS(Data!$D:$D,Data!$A:$A,$C$4,Data!$B:$B,"allowed nominal return on equity",Data!$C:$C,J$22)) -> 0.04734066535 | K24: =IF($C$6="Exclusive", SUMIFS(Data!$D:$D,Data!$A:$A,Detailed!$C$4,Data!$B:$B,"allowed real return on equity",Data!$C:$C,K$22), SUMIFS(Data!$D:$D,Data!$A:$A,$C$4,Data!$B:$B,"allowed nominal return on equity",Data!$C:$C,K$22)) -> 0.04734066535 | L24: =IF($C$6="Exclusive", SUMIFS(Data!$D:$D,Data!$A:$A,Detailed!$C$4,Data!$B:$B,"allowed real return on equity",Data!$C:$C,L$22), SUMIFS(Data!$D:$D,Data!$A:$A,$C$4,Data!$B:$B,"allowed nominal return on equity",Data!$C:$C,L$22)) -> 0.008813864932 | M24: =IF($C$6="Exclusive", SUMIFS(Data!$D:$D,Data!$A:$A,Detailed!$C$4,Data!$B:$B,"allowed real return on equity",Data!$C:$C,M$22), SUMIFS(Data!$D:$D,Data!$A:$A,$C$4,Data!$B:$B,"allowed nominal return on equity",Data!$C:$C,M$22)) -> 0.04249540876
B25: Difference | C25: =C23-C24 -> 0.001711651695 | D25: =D23-D24 -> 0.01276054355 | E25: 0.02281894724 | F25: 0.00917007848 | G25: -0.01168169337 | H25: =H23-H24 -> 0.01826021913 | I25: 0.01291047983 | J25: -0.03201485718 | K25: =K23-K24 -> 0.03214666362 | L25: 0.1237796982 | M25: 0.09891972719
B27: Source: Post Tax Revenue Model - Post tax real return on equity - 2014 to 2024
B30: EBIT per customer ($) | C30: 2014 | D30: 2015 | E30: 2016 | F30: 2017 | G30: 2018 | H30: 2019 | I30: 2020 | J30: 2021 | K30: 2022 | L30: 2023 | M30: 2024
B31: EBIT per Customer ($) | C31: =C71/C88 -> 98.22935957 | D31: 108.1042916 | E31: 125.4265367 | F31: 124.770445 | G31: 81.85486207 | H31: 102.6921775 | I31: 105.770297 | J31: 101.4833256 | K31: 82.018811 | L31: =L71/L88 -> 87.46405429 | M31: 85.30141752
B33: Detailed calculations
B35: Revenue | C35: 2014 | D35: 2015 | E35: 2016 | F35: 2017 | G35: 2018 | H35: 2019 | I35: 2020 | J35: 2021 | K35: 2022 | L35: 2023 | M35: 2024
B36: Revenue | C36: =SUMIFS(Data!$D:$D,Data!$A:$A,Detailed!$C$4,Data!$B:$B,Detailed!$B36,Data!$C:$C,Detailed!C$35)-IF($C$8="Exclusive",C$80,0) -> 168126416.3 | D36: =SUMIFS(Data!$D:$D,Data!$A:$A,Detailed!$C$4,Data!$B:$B,Detailed!$B36,Data!$C:$C,Detailed!D$35)-IF($C$8="Exclusive",D$80,0) -> 183596998.6 | E36: =SUMIFS(Data!$D:$D,Data!$A:$A,Detailed!$C$4,Data!$B:$B,Detailed!$B36,Data!$C:$C,Detailed!E$35)-IF($C$8="Exclusive",E$80,0) -> 201844092.8 | F36: =SUMIFS(Data!$D:$D,Data!$A:$A,Detailed!$C$4,Data!$B:$B,Detailed!$B36,Data!$C:$C,Detailed!F$35)-IF($C$8="Exclusive",F$80,0) -> 213246517.5 | G36: =SUMIFS(Data!$D:$D,Data!$A:$A,Detailed!$C$4,Data!$B:$B,Detailed!$B36,Data!$C:$C,Detailed!G$35)-IF($C$8="Exclusive",G$80,0) -> 193950336.4 | H36: =SUMIFS(Data!$D:$D,Data!$A:$A,Detailed!$C$4,Data!$B:$B,Detailed!$B36,Data!$C:$C,Detailed!H$35)-IF($C$8="Exclusive",H$80,0) -> 202140810.9 | I36: =SUMIFS(Data!$D:$D,Data!$A:$A,Detailed!$C$4,Data!$B:$B,Detailed!$B36,Data!$C:$C,Detailed!I$35)-IF($C$8="Exclusive",I$80,0) -> 211081248.9 | J36: =SUMIFS(Data!$D:$D,Data!$A:$A,Detailed!$C$4,Data!$B:$B,Detailed!$B36,Data!$C:$C,Detailed!J$35)-IF($C$8="Exclusive",J$80,0) -> 211743543 | K36: =SUMIFS(Data!$D:$D,Data!$A:$A,Detailed!$C$4,Data!$B:$B,Detailed!$B36,Data!$C:$C,Detailed!K$35)-IF($C$8="Exclusive",K$80,0) -> 216492118.1 | L36: =SUMIFS(Data!$D:$D,Data!$A:$A,Detailed!$C$4,Data!$B:$B,Detailed!$B36,Data!$C:$C,Detailed!L$35)-IF($C$8="Exclusive",L$80,0) -> 201885771.5 | M36: =SUMIFS(Data!$D:$D,Data!$A:$A,Detailed!$C$4,Data!$B:$B,Detailed!$B36,Data!$C:$C,Detailed!M$35)-IF($C$8="Exclusive",M$80,0) -> 241495641.7
B37: Other Revenue | C37: =SUMIFS(Data!$D:$D,Data!$A:$A,Detailed!$C$4,Data!$B:$B,Detailed!$B37,Data!$C:$C,Detailed!C$35) -> 0 | D37: =SUMIFS(Data!$D:$D,Data!$A:$A,Detailed!$C$4,Data!$B:$B,Detailed!$B37,Data!$C:$C,Detailed!D$35) -> 0 | E37: =SUMIFS(Data!$D:$D,Data!$A:$A,Detailed!$C$4,Data!$B:$B,Detailed!$B37,Data!$C:$C,Detailed!E$35) -> 0 | F37: =SUMIFS(Data!$D:$D,Data!$A:$A,Detailed!$C$4,Data!$B:$B,Detailed!$B37,Data!$C:$C,Detailed!F$35) -> 0 | G37: =SUMIFS(Data!$D:$D,Data!$A:$A,Detailed!$C$4,Data!$B:$B,Detailed!$B37,Data!$C:$C,Detailed!G$35) -> 0 | H37: =SUMIFS(Data!$D:$D,Data!$A:$A,Detailed!$C$4,Data!$B:$B,Detailed!$B37,Data!$C:$C,Detailed!H$35) -> 0 | I37: =SUMIFS(Data!$D:$D,Data!$A:$A,Detailed!$C$4,Data!$B:$B,Detailed!$B37,Data!$C:$C,Detailed!I$35) -> 0 | J37: =SUMIFS(Data!$D:$D,Data!$A:$A,Detailed!$C$4,Data!$B:$B,Detailed!$B37,Data!$C:$C,Detailed!J$35) -> 0 | K37: =SUMIFS(Data!$D:$D,Data!$A:$A,Detailed!$C$4,Data!$B:$B,Detailed!$B37,Data!$C:$C,Detailed!K$35) -> 0 | L37: =SUMIFS(Data!$D:$D,Data!$A:$A,Detailed!$C$4,Data!$B:$B,Detailed!$B37,Data!$C:$C,Detailed!L$35) -> 0 | M37: =SUMIFS(Data!$D:$D,Data!$A:$A,Detailed!$C$4,Data!$B:$B,Detailed!$B37,Data!$C:$C,Detailed!M$35) -> 0
B38: Total revenue | C38: =SUM(C36:C37) -> 168126416.3 | D38: =SUM(D36:D37) -> 183596998.6 | E38: 201844092.8 | F38: 213246517.5 | G38: 193950336.4 | H38: 202140810.9 | I38: 211081248.9 | J38: 211743543 | K38: =SUM(K36:K37) -> 216492118.1 | L38: 201885771.5 | M38: 241495641.7
B40: Source: Annual RIN Financial - Income Statement - 2014 to 2024
B43: Cost of Goods Sold expenditure | C43: 2014 | D43: 2015 | E43: 2016 | F43: 2017 | G43: 2018 | H43: 2019 | I43: 2020 | J43: 2021 | K43: 2022 | L43: 2023 | M43: 2024
B44: Unaccounted for gas | C44: =SUMIFS(Data!$D:$D,Data!$A:$A,Detailed!$C$4,Data!$B:$B,Detailed!$B44,Data!$C:$C,Detailed!C$43) -> -814376 | D44: =SUMIFS(Data!$D:$D,Data!$A:$A,Detailed!$C$4,Data!$B:$B,Detailed!$B44,Data!$C:$C,Detailed!D$43) -> -1650836.99 | E44: =SUMIFS(Data!$D:$D,Data!$A:$A,Detailed!$C$4,Data!$B:$B,Detailed!$B44,Data!$C:$C,Detailed!E$43) -> -1799147 | F44: =SUMIFS(Data!$D:$D,Data!$A:$A,Detailed!$C$4,Data!$B:$B,Detailed!$B44,Data!$C:$C,Detailed!F$43) -> 113898 | G44: =SUMIFS(Data!$D:$D,Data!$A:$A,Detailed!$C$4,Data!$B:$B,Detailed!$B44,Data!$C:$C,Detailed!G$43) -> 0.8 | H44: =SUMIFS(Data!$D:$D,Data!$A:$A,Detailed!$C$4,Data!$B:$B,Detailed!$B44,Data!$C:$C,Detailed!H$43) -> 2206947 | I44: =SUMIFS(Data!$D:$D,Data!$A:$A,Detailed!$C$4,Data!$B:$B,Detailed!$B44,Data!$C:$C,Detailed!I$43) -> 2252157.03 | J44: =SUMIFS(Data!$D:$D,Data!$A:$A,Detailed!$C$4,Data!$B:$B,Detailed!$B44,Data!$C:$C,Detailed!J$43) -> 12410.59 | K44: =SUMIFS(Data!$D:$D,Data!$A:$A,Detailed!$C$4,Data!$B:$B,Detailed!$B44,Data!$C:$C,Detailed!K$43) -> 93917.39 | L44: =SUMIFS(Data!$D:$D,Data!$A:$A,Detailed!$C$4,Data!$B:$B,Detailed!$B44,Data!$C:$C,Detailed!L$43) -> 78963.09171 | M44: =SUMIFS(Data!$D:$D,Data!$A:$A,Detailed!$C$4,Data!$B:$B,Detailed!$B44,Data!$C:$C,Detailed!M$43) -> 93151.34
B45: Jurisdictional charges | C45: =SUMIFS(Data!$D:$D,Data!$A:$A,Detailed!$C$4,Data!$B:$B,Detailed!$B45,Data!$C:$C,Detailed!C$43) -> 0 | D45: =SUMIFS(Data!$D:$D,Data!$A:$A,Detailed!$C$4,Data!$B:$B,Detailed!$B45,Data!$C:$C,Detailed!D$43) -> 0 | E45: =SUMIFS(Data!$D:$D,Data!$A:$A,Detailed!$C$4,Data!$B:$B,Detailed!$B45,Data!$C:$C,Detailed!E$43) -> 0 | F45: =SUMIFS(Data!$D:$D,Data!$A:$A,Detailed!$C$4,Data!$B:$B,Detailed!$B45,Data!$C:$C,Detailed!F$43) -> 0 | G45: =SUMIFS(Data!$D:$D,Data!$A:$A,Detailed!$C$4,Data!$B:$B,Detailed!$B45,Data!$C:$C,Detailed!G$43) -> 0 | H45: =SUMIFS(Data!$D:$D,Data!$A:$A,Detailed!$C$4,Data!$B:$B,Detailed!$B45,Data!$C:$C,Detailed!H$43) -> 0 | I45: =SUMIFS(Data!$D:$D,Data!$A:$A,Detailed!$C$4,Data!$B:$B,Detailed!$B45,Data!$C:$C,Detailed!I$43) -> 0 | J45: =SUMIFS(Data!$D:$D,Data!$A:$A,Detailed!$C$4,Data!$B:$B,Detailed!$B45,Data!$C:$C,Detailed!J$43) -> 0 | K45: =SUMIFS(Data!$D:$D,Data!$A:$A,Detailed!$C$4,Data!$B:$B,Detailed!$B45,Data!$C:$C,Detailed!K$43) -> 5566249.17 | L45: =SUMIFS(Data!$D:$D,Data!$A:$A,Detailed!$C$4,Data!$B:$B,Detailed!$B45,Data!$C:$C,Detailed!L$43) -> 5686364.321 | M45: =SUMIFS(Data!$D:$D,Data!$A:$A,Detailed!$C$4,Data!$B:$B,Detailed!$B45,Data!$C:$C,Detailed!M$43) -> 8039170.88
B46: Total costs of goods sold expenditure | C46: =SUM(C44:C45) -> -814376 | D46: -1650836.99 | E46: -1799147 | F46: 113898 | G46: 0.8 | H46: 2206947 | I46: 2252157.03 | J46: 12410.59 | K46: =SUM(K44:K45) -> 5660166.56 | L46: 5765327.413 | M46: 8132322.22
B48: Source: Annual RIN Financial - Opex - 2014 to 2024
C51: 2014 | D51: 2015 | E51: 2016 | F51: 2017 | G51: 2018 | H51: 2019 | I51: 2020 | J51: 2021 | K51: 2022 | L51: 2023 | M51: 2024
B52: Total Gross Profit | C52: =C38-C46 -> 168940792.3 | D52: =D38-D46 -> 185247835.6 | E52: 203643239.8 | F52: 213132619.5 | G52: =G38-G46 -> 193950335.6 | H52: 199933863.9 | I52: 208829091.9 | J52: =J38-J46 -> 211731132.4 | K52: =K38-K46 -> 210831951.6 | L52: =L38-L46 -> 196120444.1 | M52: =M38-M46 -> 233363319.5
B54: Expenditure | C54: 2014 | D54: 2015 | E54: 2016 | F54: 2017 | G54: 2018 | H54: 2019 | I54: 2020 | J54: 2021 | K54: 2022 | L54: 2023 | M54: 2024
B55: Operating expenditure | C55: =SUMIFS(Data!$D:$D,Data!$A:$A,Detailed!$C$4,Data!$B:$B,Detailed!$B55,Data!$C:$C,Detailed!C$54) -> 50880036.71 | D55: =SUMIFS(Data!$D:$D,Data!$A:$A,Detailed!$C$4,Data!$B:$B,Detailed!$B55,Data!$C:$C,Detailed!D$54) -> 52650548.15 | E55: =SUMIFS(Data!$D:$D,Data!$A:$A,Detailed!$C$4,Data!$B:$B,Detailed!$B55,Data!$C:$C,Detailed!E$54) -> 52842114.95 | F55: =SUMIFS(Data!$D:$D,Data!$A:$A,Detailed!$C$4,Data!$B:$B,Detailed!$B55,Data!$C:$C,Detailed!F$54) -> 56450875.95 | G55: =SUMIFS(Data!$D:$D,Data!$A:$A,Detailed!$C$4,Data!$B:$B,Detailed!$B55,Data!$C:$C,Detailed!G$54) -> 56461201.05 | H55: =SUMIFS(Data!$D:$D,Data!$A:$A,Detailed!$C$4,Data!$B:$B,Detailed!$B55,Data!$C:$C,Detailed!H$54) -> 54836228.54 | I55: =SUMIFS(Data!$D:$D,Data!$A:$A,Detailed!$C$4,Data!$B:$B,Detailed!$B55,Data!$C:$C,Detailed!I$54) -> 55339524.38 | J55: =SUMIFS(Data!$D:$D,Data!$A:$A,Detailed!$C$4,Data!$B:$B,Detailed!$B55,Data!$C:$C,Detailed!J$54) -> 56492855.55 | K55: =SUMIFS(Data!$D:$D,Data!$A:$A,Detailed!$C$4,Data!$B:$B,Detailed!$B55,Data!$C:$C,Detailed!K$54) -> 62169412.98 | L55: =SUMIFS(Data!$D:$D,Data!$A:$A,Detailed!$C$4,Data!$B:$B,Detailed!$B55,Data!$C:$C,Detailed!L$54) -> 48752511.57 | M55: =SUMIFS(Data!$D:$D,Data!$A:$A,Detailed!$C$4,Data!$B:$B,Detailed!$B55,Data!$C:$C,Detailed!M$54) -> 56918261.04
B56: Other expenditure | C56: =SUMIFS(Data!$D:$D,Data!$A:$A,Detailed!$C$4,Data!$B:$B,Detailed!$B56,Data!$C:$C,Detailed!C$54) -> 0 | D56: =SUMIFS(Data!$D:$D,Data!$A:$A,Detailed!$C$4,Data!$B:$B,Detailed!$B56,Data!$C:$C,Detailed!D$54) -> 0 | E56: =SUMIFS(Data!$D:$D,Data!$A:$A,Detailed!$C$4,Data!$B:$B,Detailed!$B56,Data!$C:$C,Detailed!E$54) -> 0 | F56: =SUMIFS(Data!$D:$D,Data!$A:$A,Detailed!$C$4,Data!$B:$B,Detailed!$B56,Data!$C:$C,Detailed!F$54) -> 0 | G56: =SUMIFS(Data!$D:$D,Data!$A:$A,Detailed!$C$4,Data!$B:$B,Detailed!$B56,Data!$C:$C,Detailed!G$54) -> 0 | H56: =SUMIFS(Data!$D:$D,Data!$A:$A,Detailed!$C$4,Data!$B:$B,Detailed!$B56,Data!$C:$C,Detailed!H$54) -> 0 | I56: =SUMIFS(Data!$D:$D,Data!$A:$A,Detailed!$C$4,Data!$B:$B,Detailed!$B56,Data!$C:$C,Detailed!I$54) -> 0 | J56: =SUMIFS(Data!$D:$D,Data!$A:$A,Detailed!$C$4,Data!$B:$B,Detailed!$B56,Data!$C:$C,Detailed!J$54) -> 0 | K56: =SUMIFS(Data!$D:$D,Data!$A:$A,Detailed!$C$4,Data!$B:$B,Detailed!$B56,Data!$C:$C,Detailed!K$54) -> 0 | L56: =SUMIFS(Data!$D:$D,Data!$A:$A,Detailed!$C$4,Data!$B:$B,Detailed!$B56,Data!$C:$C,Detailed!L$54) -> 0 | M56: =SUMIFS(Data!$D:$D,Data!$A:$A,Detailed!$C$4,Data!$B:$B,Detailed!$B56,Data!$C:$C,Detailed!M$54) -> 0
B57: Total expenditure | C57: =SUM(C55:C56) -> 50880036.71 | D57: 52650548.15 | E57: 52842114.95 | F57: 56450875.95 | G57: 56461201.05 | H57: 54836228.54 | I57: 55339524.38 | J57: 56492855.55 | K57: 62169412.98 | L57: 48752511.57 | M57: 56918261.04
B59: Source: Annual RIN Financial - Opex - 2014 to 2024
B62: Total Earnings before Interest, Tax, Depreciation & Amortisation (EBITDA) | C62: =C52-C57 -> 118060755.6 | D62: 132597287.4 | E62: 150801124.8 | F62: 156681743.6 | G62: 137489134.5 | H62: 145097635.4 | I62: 153489567.5 | J62: 155238276.8 | K62: 148662538.6 | L62: 147367932.5 | M62: 176445058.4
B64: Depreciation | C64: 2014 | D64: 2015 | E64: 2016 | F64: 2017 | G64: 2018 | H64: 2019 | I64: 2020 | J64: 2021 | K64: 2022 | L64: 2023 | M64: 2024
B65: Nominal Straight Line Depreciation | C65: =SUMIFS(Data!$D:$D,Data!$A:$A,Detailed!$C$4,Data!$B:$B,Detailed!$B65,Data!$C:$C,Detailed!C$64) -> 54815094.84 | D65: =SUMIFS(Data!$D:$D,Data!$A:$A,Detailed!$C$4,Data!$B:$B,Detailed!$B65,Data!$C:$C,Detailed!D$64) -> 61378882.82 | E65: =SUMIFS(Data!$D:$D,Data!$A:$A,Detailed!$C$4,Data!$B:$B,Detailed!$B65,Data!$C:$C,Detailed!E$64) -> 66238616.5 | F65: =SUMIFS(Data!$D:$D,Data!$A:$A,Detailed!$C$4,Data!$B:$B,Detailed!$B65,Data!$C:$C,Detailed!F$64) -> 70461747.7 | G65: =SUMIFS(Data!$D:$D,Data!$A:$A,Detailed!$C$4,Data!$B:$B,Detailed!$B65,Data!$C:$C,Detailed!G$64) -> 79444828.62 | H65: =SUMIFS(Data!$D:$D,Data!$A:$A,Detailed!$C$4,Data!$B:$B,Detailed!$B65,Data!$C:$C,Detailed!H$64) -> 70288129.83 | I65: =SUMIFS(Data!$D:$D,Data!$A:$A,Detailed!$C$4,Data!$B:$B,Detailed!$B65,Data!$C:$C,Detailed!I$64) -> 74267086.19 | J65: =SUMIFS(Data!$D:$D,Data!$A:$A,Detailed!$C$4,Data!$B:$B,Detailed!$B65,Data!$C:$C,Detailed!J$64) -> 77199070.91 | K65: =SUMIFS(Data!$D:$D,Data!$A:$A,Detailed!$C$4,Data!$B:$B,Detailed!$B65,Data!$C:$C,Detailed!K$64) -> 84053778.61 | L65: =SUMIFS(Data!$D:$D,Data!$A:$A,Detailed!$C$4,Data!$B:$B,Detailed!$B65,Data!$C:$C,Detailed!L$64) -> 77335464.27 | M65: =SUMIFS(Data!$D:$D,Data!$A:$A,Detailed!$C$4,Data!$B:$B,Detailed!$B65,Data!$C:$C,Detailed!M$64) -> 106986332
B66: Indexation of opening Regulatory Asset Base | C66: =IF(AND($C$10="exclusive",$C$6="Inclusive"),C94*C99,IF($C$6="Inclusive",C94*C98,"n/a")) -> n/a | D66: =IF(AND($C$10="exclusive",$C$6="Inclusive"),D94*D99,IF($C$6="Inclusive",D94*D98,"n/a")) -> n/a | E66: n/a | F66: n/a | G66: n/a | H66: n/a | I66: n/a | J66: n/a | K66: n/a | L66: n/a | M66: n/a
B68: Source: Roll Forward Model - Nominal straight line depreciation - 2014 to 2024 Where not available - Post Tax Revenue Model - Nominal straight line depreciation (updated for CPI) - 2021 to 2024
B71: Total Earnings before Interest & Tax (EBIT) | C71: =IF($C$6="Inclusive",C62-C65+C66,C62-C65) -> 63245660.76 | D71: =IF($C$6="Inclusive",D62-D65+D66,D62-D65) -> 71218404.63 | E71: =IF($C$6="Inclusive",E62-E65+E66,E62-E65) -> 84562508.3 | F71: =IF($C$6="Inclusive",F62-F65+F66,F62-F65) -> 86219995.87 | G71: =IF($C$6="Inclusive",G62-G65+G66,G62-G65) -> 58044305.88 | H71: 74809505.57 | I71: 79222481.33 | J71: 78039205.9 | K71: =IF($C$6="Inclusive",K62-K65+K66,K62-K65) -> 64608760.01 | L71: 70032468.27 | M71: =IF($C$6="Inclusive",M62-M65+M66,M62-M65) -> 69458726.45
B73: Supplementary Information
B75: Incentive schemes | C75: 2014 | D75: 2015 | E75: 2016 | F75: 2017 | G75: 2018 | H75: 2019 | I75: 2020 | J75: 2021 | K75: 2022 | L75: 2023 | M75: 2024
B76: EBSS | C76: =SUMIFS(Data!$D:$D,Data!$A:$A,Detailed!$C$4,Data!$B:$B,Detailed!$B76,Data!$C:$C,Detailed!C$75) -> 0 | D76: =SUMIFS(Data!$D:$D,Data!$A:$A,Detailed!$C$4,Data!$B:$B,Detailed!$B76,Data!$C:$C,Detailed!D$75) -> 0 | E76: =SUMIFS(Data!$D:$D,Data!$A:$A,Detailed!$C$4,Data!$B:$B,Detailed!$B76,Data!$C:$C,Detailed!E$75) -> 0 | F76: =SUMIFS(Data!$D:$D,Data!$A:$A,Detailed!$C$4,Data!$B:$B,Detailed!$B76,Data!$C:$C,Detailed!F$75) -> 0 | G76: =SUMIFS(Data!$D:$D,Data!$A:$A,Detailed!$C$4,Data!$B:$B,Detailed!$B76,Data!$C:$C,Detailed!G$75) -> 0 | H76: =SUMIFS(Data!$D:$D,Data!$A:$A,Detailed!$C$4,Data!$B:$B,Detailed!$B76,Data!$C:$C,Detailed!H$75) -> 0 | I76: =SUMIFS(Data!$D:$D,Data!$A:$A,Detailed!$C$4,Data!$B:$B,Detailed!$B76,Data!$C:$C,Detailed!I$75) -> 0 | J76: =SUMIFS(Data!$D:$D,Data!$A:$A,Detailed!$C$4,Data!$B:$B,Detailed!$B76,Data!$C:$C,Detailed!J$75) -> 0 | K76: =SUMIFS(Data!$D:$D,Data!$A:$A,Detailed!$C$4,Data!$B:$B,Detailed!$B76,Data!$C:$C,Detailed!K$75) -> 0 | L76: =SUMIFS(Data!$D:$D,Data!$A:$A,Detailed!$C$4,Data!$B:$B,Detailed!$B76,Data!$C:$C,Detailed!L$75) -> 0 | M76: =SUMIFS(Data!$D:$D,Data!$A:$A,Detailed!$C$4,Data!$B:$B,Detailed!$B76,Data!$C:$C,Detailed!M$75) -> 0
B77: Efficiency carryover | C77: =SUMIFS(Data!$D:$D,Data!$A:$A,Detailed!$C$4,Data!$B:$B,Detailed!$B77,Data!$C:$C,Detailed!C$75) -> 3848455.705 | D77: =SUMIFS(Data!$D:$D,Data!$A:$A,Detailed!$C$4,Data!$B:$B,Detailed!$B77,Data!$C:$C,Detailed!D$75) -> 3980832.334 | E77: =SUMIFS(Data!$D:$D,Data!$A:$A,Detailed!$C$4,Data!$B:$B,Detailed!$B77,Data!$C:$C,Detailed!E$75) -> 4138321.854 | F77: =SUMIFS(Data!$D:$D,Data!$A:$A,Detailed!$C$4,Data!$B:$B,Detailed!$B77,Data!$C:$C,Detailed!F$75) -> 4371517.312 | G77: =SUMIFS(Data!$D:$D,Data!$A:$A,Detailed!$C$4,Data!$B:$B,Detailed!$B77,Data!$C:$C,Detailed!G$75) -> 1866623.635 | H77: =SUMIFS(Data!$D:$D,Data!$A:$A,Detailed!$C$4,Data!$B:$B,Detailed!$B77,Data!$C:$C,Detailed!H$75) -> 1913249.44 | I77: =SUMIFS(Data!$D:$D,Data!$A:$A,Detailed!$C$4,Data!$B:$B,Detailed!$B77,Data!$C:$C,Detailed!I$75) -> 1916685.602 | J77: =SUMIFS(Data!$D:$D,Data!$A:$A,Detailed!$C$4,Data!$B:$B,Detailed!$B77,Data!$C:$C,Detailed!J$75) -> 2003146.779 | K77: =SUMIFS(Data!$D:$D,Data!$A:$A,Detailed!$C$4,Data!$B:$B,Detailed!$B77,Data!$C:$C,Detailed!K$75) -> 1974878.071 | L77: =SUMIFS(Data!$D:$D,Data!$A:$A,Detailed!$C$4,Data!$B:$B,Detailed!$B77,Data!$C:$C,Detailed!L$75) -> 10456269.75 | M77: =SUMIFS(Data!$D:$D,Data!$A:$A,Detailed!$C$4,Data!$B:$B,Detailed!$B77,Data!$C:$C,Detailed!M$75) -> 5429965.745
B78: CESS | C78: =SUMIFS(Data!$D:$D,Data!$A:$A,Detailed!$C$4,Data!$B:$B,Detailed!$B78,Data!$C:$C,Detailed!C$75) -> 0 | D78: =SUMIFS(Data!$D:$D,Data!$A:$A,Detailed!$C$4,Data!$B:$B,Detailed!$B78,Data!$C:$C,Detailed!D$75) -> 0 | E78: =SUMIFS(Data!$D:$D,Data!$A:$A,Detailed!$C$4,Data!$B:$B,Detailed!$B78,Data!$C:$C,Detailed!E$75) -> 0 | F78: =SUMIFS(Data!$D:$D,Data!$A:$A,Detailed!$C$4,Data!$B:$B,Detailed!$B78,Data!$C:$C,Detailed!F$75) -> 0 | G78: =SUMIFS(Data!$D:$D,Data!$A:$A,Detailed!$C$4,Data!$B:$B,Detailed!$B78,Data!$C:$C,Detailed!G$75) -> 0 | H78: =SUMIFS(Data!$D:$D,Data!$A:$A,Detailed!$C$4,Data!$B:$B,Detailed!$B78,Data!$C:$C,Detailed!H$75) -> 0 | I78: =SUMIFS(Data!$D:$D,Data!$A:$A,Detailed!$C$4,Data!$B:$B,Detailed!$B78,Data!$C:$C,Detailed!I$75) -> 0 | J78: =SUMIFS(Data!$D:$D,Data!$A:$A,Detailed!$C$4,Data!$B:$B,Detailed!$B78,Data!$C:$C,Detailed!J$75) -> 0 | K78: =SUMIFS(Data!$D:$D,Data!$A:$A,Detailed!$C$4,Data!$B:$B,Detailed!$B78,Data!$C:$C,Detailed!K$75) -> 0 | L78: =SUMIFS(Data!$D:$D,Data!$A:$A,Detailed!$C$4,Data!$B:$B,Detailed!$B78,Data!$C:$C,Detailed!L$75) -> 0 | M78: =SUMIFS(Data!$D:$D,Data!$A:$A,Detailed!$C$4,Data!$B:$B,Detailed!$B78,Data!$C:$C,Detailed!M$75) -> 1545580.086
B79: other | C79: =SUMIFS(Data!$D:$D,Data!$A:$A,Detailed!$C$4,Data!$B:$B,Detailed!$B79,Data!$C:$C,Detailed!C$75) -> 0 | D79: =SUMIFS(Data!$D:$D,Data!$A:$A,Detailed!$C$4,Data!$B:$B,Detailed!$B79,Data!$C:$C,Detailed!D$75) -> 0 | E79: =SUMIFS(Data!$D:$D,Data!$A:$A,Detailed!$C$4,Data!$B:$B,Detailed!$B79,Data!$C:$C,Detailed!E$75) -> 0 | F79: =SUMIFS(Data!$D:$D,Data!$A:$A,Detailed!$C$4,Data!$B:$B,Detailed!$B79,Data!$C:$C,Detailed!F$75) -> 0 | G79: =SUMIFS(Data!$D:$D,Data!$A:$A,Detailed!$C$4,Data!$B:$B,Detailed!$B79,Data!$C:$C,Detailed!G$75) -> 0 | H79: =SUMIFS(Data!$D:$D,Data!$A:$A,Detailed!$C$4,Data!$B:$B,Detailed!$B79,Data!$C:$C,Detailed!H$75) -> 0 | I79: =SUMIFS(Data!$D:$D,Data!$A:$A,Detailed!$C$4,Data!$B:$B,Detailed!$B79,Data!$C:$C,Detailed!I$75) -> 0 | J79: =SUMIFS(Data!$D:$D,Data!$A:$A,Detailed!$C$4,Data!$B:$B,Detailed!$B79,Data!$C:$C,Detailed!J$75) -> 0 | K79: =SUMIFS(Data!$D:$D,Data!$A:$A,Detailed!$C$4,Data!$B:$B,Detailed!$B79,Data!$C:$C,Detailed!K$75) -> 0 | L79: =SUMIFS(Data!$D:$D,Data!$A:$A,Detailed!$C$4,Data!$B:$B,Detailed!$B79,Data!$C:$C,Detailed!L$75) -> 0 | M79: =SUMIFS(Data!$D:$D,Data!$A:$A,Detailed!$C$4,Data!$B:$B,Detailed!$B79,Data!$C:$C,Detailed!M$75) -> 0
B80: Total revenue (penalties) allowed (deducted) through incentive schemes | C80: =SUM(C76:C79) -> 3848455.705 | D80: =SUM(D76:D79) -> 3980832.334 | E80: 4138321.854 | F80: 4371517.312 | G80: 1866623.635 | H80: 1913249.44 | I80: 1916685.602 | J80: 2003146.779 | K80: =SUM(K76:K79) -> 1974878.071 | L80: 10456269.75 | M80: =SUM(M76:M79) -> 6975545.831
B82: Source: Annual RIN - Revenue - 2014 to 2024
B85: Customer Numbers | C85: 2014 | D85: 2015 | E85: 2016 | F85: 2017 | G85: 2018 | H85: 2019 | I85: 2020 | J85: 2021 | K85: 2022 | L85: 2023 | M85: 2024
B86: Customer numbers at the start of the period | C86: =SUMIFS(Data!$D:$D,Data!$A:$A,Detailed!$C$4,Data!$B:$B,Detailed!$B86,Data!$C:$C,Detailed!C$85) -> 636518 | D86: =SUMIFS(Data!$D:$D,Data!$A:$A,Detailed!$C$4,Data!$B:$B,Detailed!$B86,Data!$C:$C,Detailed!D$85) -> 651196 | E86: =SUMIFS(Data!$D:$D,Data!$A:$A,Detailed!$C$4,Data!$B:$B,Detailed!$B86,Data!$C:$C,Detailed!E$85) -> 666391 | F86: =SUMIFS(Data!$D:$D,Data!$A:$A,Detailed!$C$4,Data!$B:$B,Detailed!$B86,Data!$C:$C,Detailed!F$85) -> 682008 | G86: =SUMIFS(Data!$D:$D,Data!$A:$A,Detailed!$C$4,Data!$B:$B,Detailed!$B86,Data!$C:$C,Detailed!G$85) -> 700050 | H86: =SUMIFS(Data!$D:$D,Data!$A:$A,Detailed!$C$4,Data!$B:$B,Detailed!$B86,Data!$C:$C,Detailed!H$85) -> 718175 | I86: =SUMIFS(Data!$D:$D,Data!$A:$A,Detailed!$C$4,Data!$B:$B,Detailed!$B86,Data!$C:$C,Detailed!I$85) -> 738791 | J86: =SUMIFS(Data!$D:$D,Data!$A:$A,Detailed!$C$4,Data!$B:$B,Detailed!$B86,Data!$C:$C,Detailed!J$85) -> 759219 | K86: =SUMIFS(Data!$D:$D,Data!$A:$A,Detailed!$C$4,Data!$B:$B,Detailed!$B86,Data!$C:$C,Detailed!K$85) -> 778752 | L86: =SUMIFS(Data!$D:$D,Data!$A:$A,Detailed!$C$4,Data!$B:$B,Detailed!$B86,Data!$C:$C,Detailed!L$85) -> 796710 | M86: =SUMIFS(Data!$D:$D,Data!$A:$A,Detailed!$C$4,Data!$B:$B,Detailed!$B86,Data!$C:$C,Detailed!M$85) -> 804690
B87: Customer numbers at the end of the period | C87: =SUMIFS(Data!$D:$D,Data!$A:$A,Detailed!$C$4,Data!$B:$B,Detailed!$B87,Data!$C:$C,Detailed!C$85) -> 651196 | D87: =SUMIFS(Data!$D:$D,Data!$A:$A,Detailed!$C$4,Data!$B:$B,Detailed!$B87,Data!$C:$C,Detailed!D$85) -> 666391 | E87: =SUMIFS(Data!$D:$D,Data!$A:$A,Detailed!$C$4,Data!$B:$B,Detailed!$B87,Data!$C:$C,Detailed!E$85) -> 682008 | F87: =SUMIFS(Data!$D:$D,Data!$A:$A,Detailed!$C$4,Data!$B:$B,Detailed!$B87,Data!$C:$C,Detailed!F$85) -> 700050 | G87: =SUMIFS(Data!$D:$D,Data!$A:$A,Detailed!$C$4,Data!$B:$B,Detailed!$B87,Data!$C:$C,Detailed!G$85) -> 718175 | H87: =SUMIFS(Data!$D:$D,Data!$A:$A,Detailed!$C$4,Data!$B:$B,Detailed!$B87,Data!$C:$C,Detailed!H$85) -> 738791 | I87: =SUMIFS(Data!$D:$D,Data!$A:$A,Detailed!$C$4,Data!$B:$B,Detailed!$B87,Data!$C:$C,Detailed!I$85) -> 759219 | J87: =SUMIFS(Data!$D:$D,Data!$A:$A,Detailed!$C$4,Data!$B:$B,Detailed!$B87,Data!$C:$C,Detailed!J$85) -> 778752 | K87: =SUMIFS(Data!$D:$D,Data!$A:$A,Detailed!$C$4,Data!$B:$B,Detailed!$B87,Data!$C:$C,Detailed!K$85) -> 796710 | L87: =SUMIFS(Data!$D:$D,Data!$A:$A,Detailed!$C$4,Data!$B:$B,Detailed!$B87,Data!$C:$C,Detailed!L$85) -> 804690 | M87: =SUMIFS(Data!$D:$D,Data!$A:$A,Detailed!$C$4,Data!$B:$B,Detailed!$B87,Data!$C:$C,Detailed!M$85) -> 823858
B88: Average Customer Numbers for regulatory year | C88: =AVERAGE(C86:C87) -> 643857 | D88: 658793.5 | E88: 674199.5 | F88: 691029 | G88: 709112.5 | H88: =AVERAGE(H86:H87) -> 728483 | I88: 749005 | J88: 768985.5 | K88: =AVERAGE(K86:K87) -> 787731 | L88: 800700 | M88: 814274
B90: Source: Annual RIN - Customer numbers - 2014 to 2024
C93: 2014 | D93: 2015 | E93: 2016 | F93: 2017 | G93: 2018 | H93: 2019 | I93: 2020 | J93: 2021 | K93: 2022 | L93: 2023 | M93: 2024
B94: Opening Regulatory Asset Base (Nominal) | C94: =IF($F$6="Yes",#REF!,SUMIFS(Data!$D:$D,Data!$A:$A,Detailed!$C$4,Data!$B:$B,Detailed!$B94,Data!$C:$C,Detailed!C$93)) -> 1339156588 | D94: =IF($F$6="Yes",#REF!,SUMIFS(Data!$D:$D,Data!$A:$A,Detailed!$C$4,Data!$B:$B,Detailed!$B94,Data!$C:$C,Detailed!D$93)) -> 1407350079 | E94: =IF($F$6="Yes",#REF!,SUMIFS(Data!$D:$D,Data!$A:$A,Detailed!$C$4,Data!$B:$B,Detailed!$B94,Data!$C:$C,Detailed!E$93)) -> 1471006038 | F94: =IF($F$6="Yes",#REF!,SUMIFS(Data!$D:$D,Data!$A:$A,Detailed!$C$4,Data!$B:$B,Detailed!$B94,Data!$C:$C,Detailed!F$93)) -> 1510588113 | G94: =IF($F$6="Yes",#REF!,SUMIFS(Data!$D:$D,Data!$A:$A,Detailed!$C$4,Data!$B:$B,Detailed!$B94,Data!$C:$C,Detailed!G$93)) -> 1562693614 | H94: =IF($F$6="Yes",#REF!,SUMIFS(Data!$D:$D,Data!$A:$A,Detailed!$C$4,Data!$B:$B,Detailed!$B94,Data!$C:$C,Detailed!H$93)) -> 1611615802 | I94: =IF($F$6="Yes",#REF!,SUMIFS(Data!$D:$D,Data!$A:$A,Detailed!$C$4,Data!$B:$B,Detailed!$B94,Data!$C:$C,Detailed!I$93)) -> 1671769532 | J94: =IF($F$6="Yes",#REF!,SUMIFS(Data!$D:$D,Data!$A:$A,Detailed!$C$4,Data!$B:$B,Detailed!$B94,Data!$C:$C,Detailed!J$93)) -> 1717370484 | K94: =IF($F$6="Yes",#REF!,SUMIFS(Data!$D:$D,Data!$A:$A,Detailed!$C$4,Data!$B:$B,Detailed!$B94,Data!$C:$C,Detailed!K$93)) -> 1735178746 | L94: =IF($F$6="Yes",#REF!,SUMIFS(Data!$D:$D,Data!$A:$A,Detailed!$C$4,Data!$B:$B,Detailed!$B94,Data!$C:$C,Detailed!L$93)) -> 1810488335 | M94: =IF($F$6="Yes",#REF!,SUMIFS(Data!$D:$D,Data!$A:$A,Detailed!$C$4,Data!$B:$B,Detailed!$B94,Data!$C:$C,Detailed!M$93)) -> 1850678056
B95: Opening RAB in common real dollar terms (for calculating real returns on assets) | C95: =C94*(1+C98) -> 1368097101 | D95: 1439827356 | E95: 1493126438 | F95: 1530169867 | G95: 1592911420 | H95: 1645100182 | I95: 1698399483 | J95: 1711386650 | K95: 1801916323 | L95: 1887318823 | M95: 1995619866
B97: Inflation | C97: 2014 | D97: 2015 | E97: 2016 | F97: 2017 | G97: 2018 | H97: 2019 | I97: 2020 | J97: 2021 | K97: 2022 | L97: 2023 | M97: 2024
B98: Inflation Rate | C98: =SUMIFS(Data!$D:$D,Data!$A:$A,Detailed!$C$4,Data!$B:$B,Detailed!$B98,Data!$C:$C,Detailed!C$97) -> 0.021611 | D98: =SUMIFS(Data!$D:$D,Data!$A:$A,Detailed!$C$4,Data!$B:$B,Detailed!$B98,Data!$C:$C,Detailed!D$97) -> 0.0230769 | E98: =SUMIFS(Data!$D:$D,Data!$A:$A,Detailed!$C$4,Data!$B:$B,Detailed!$B98,Data!$C:$C,Detailed!E$97) -> 0.0150376 | F98: =SUMIFS(Data!$D:$D,Data!$A:$A,Detailed!$C$4,Data!$B:$B,Detailed!$B98,Data!$C:$C,Detailed!F$97) -> 0.012963 | G98: =SUMIFS(Data!$D:$D,Data!$A:$A,Detailed!$C$4,Data!$B:$B,Detailed!$B98,Data!$C:$C,Detailed!G$97) -> 0.019337 | H98: =SUMIFS(Data!$D:$D,Data!$A:$A,Detailed!$C$4,Data!$B:$B,Detailed!$B98,Data!$C:$C,Detailed!H$97) -> 0.0207769 | I98: =SUMIFS(Data!$D:$D,Data!$A:$A,Detailed!$C$4,Data!$B:$B,Detailed!$B98,Data!$C:$C,Detailed!I$97) -> 0.0159292 | J98: =SUMIFS(Data!$D:$D,Data!$A:$A,Detailed!$C$4,Data!$B:$B,Detailed!$B98,Data!$C:$C,Detailed!J$97) -> -0.0034843 | K98: =SUMIFS(Data!$D:$D,Data!$A:$A,Detailed!$C$4,Data!$B:$B,Detailed!$B98,Data!$C:$C,Detailed!K$97) -> 0.0384615 | L98: =SUMIFS(Data!$D:$D,Data!$A:$A,Detailed!$C$4,Data!$B:$B,Detailed!$B98,Data!$C:$C,Detailed!L$97) -> 0.04243633387 | M98: =SUMIFS(Data!$D:$D,Data!$A:$A,Detailed!$C$4,Data!$B:$B,Detailed!$B98,Data!$C:$C,Detailed!M$97) -> 0.07831821929
B99: Forecast inflation | C99: =SUMIFS(Data!$D:$D,Data!$A:$A,Detailed!$C$4,Data!$B:$B,Detailed!$B99,Data!$C:$C,Detailed!C$97) -> 0.025 | D99: =SUMIFS(Data!$D:$D,Data!$A:$A,Detailed!$C$4,Data!$B:$B,Detailed!$B99,Data!$C:$C,Detailed!D$97) -> 0.025 | E99: =SUMIFS(Data!$D:$D,Data!$A:$A,Detailed!$C$4,Data!$B:$B,Detailed!$B99,Data!$C:$C,Detailed!E$97) -> 0.025 | F99: =SUMIFS(Data!$D:$D,Data!$A:$A,Detailed!$C$4,Data!$B:$B,Detailed!$B99,Data!$C:$C,Detailed!F$97) -> 0.025 | G99: =SUMIFS(Data!$D:$D,Data!$A:$A,Detailed!$C$4,Data!$B:$B,Detailed!$B99,Data!$C:$C,Detailed!G$97) -> 0.02449951148 | H99: =SUMIFS(Data!$D:$D,Data!$A:$A,Detailed!$C$4,Data!$B:$B,Detailed!$B99,Data!$C:$C,Detailed!H$97) -> 0.02449951148 | I99: =SUMIFS(Data!$D:$D,Data!$A:$A,Detailed!$C$4,Data!$B:$B,Detailed!$B99,Data!$C:$C,Detailed!I$97) -> 0.02449951148 | J99: =SUMIFS(Data!$D:$D,Data!$A:$A,Detailed!$C$4,Data!$B:$B,Detailed!$B99,Data!$C:$C,Detailed!J$97) -> 0.02449951148 | K99: =SUMIFS(Data!$D:$D,Data!$A:$A,Detailed!$C$4,Data!$B:$B,Detailed!$B99,Data!$C:$C,Detailed!K$97) -> 0.02449951148 | L99: =SUMIFS(Data!$D:$D,Data!$A:$A,Detailed!$C$4,Data!$B:$B,Detailed!$B99,Data!$C:$C,Detailed!L$97) -> 0.06206291899 | M99: =SUMIFS(Data!$D:$D,Data!$A:$A,Detailed!$C$4,Data!$B:$B,Detailed!$B99,Data!$C:$C,Detailed!M$97) -> 0.02919304851
B101: Source: Roll Forward Model - Inflation Rate - 2014 to 2024 Where not available - Australian Bureau of Statistics - Inflation Rate 2024 Post Tax Revenue Model - Forecast inflation rate - 2014 to 2024
